{"text_format":"3","workbook":"xlsx","n_sheets":52,"sheets":["Инструкция","Лог обновления","Титульный","Территории","Дифференциация","Форма 4.4","Форма 1.0.1 | Форма 4.4","Форма 1.0.1 | Форма 4.6","Форма 4.6","Сведения об изменении","Форма 1.0.2","Комментарии","Проверка","modProv","modReestr","AllSheetsInThisWorkbook","TEHSHEET","modCheckCyan","modInfo","et_union_hor","et_union_vert","modList00","modList01","modList02","modList03","modList04","modList05","modList07","modList09","modHTTP","modfrmRegion","MR_LIST","REESTR_VT","REESTR_VED","modfrmReestrObj","DataOrg","modfrmReestr","modUpdTemplMain","REESTR_ORG","modClassifierValidate","modHyp","modfrmDateChoose","modComm","modThisWorkbook","REESTR_MO","REESTR_MO_FILTER","modfrmReestrMR","modServiceModule","modfrmCheckUpdates","REESTR_DS","REESTR_CHS","REESTR_LINK"],"not_rendered":{"images":22,"macros":1,"defined_names":181,"comments":5},"read":"whole","date_system":"1900"}

{"sheet":"Инструкция","index":0,"n_rows":83,"n_cols":27,"rows_kept":83,"merged":[[1,1,1,6],[2,1,2,2],[4,1,4,24],[6,4,18,23],[20,5,20,12],[20,15,20,23],[21,5,21,12],[21,15,21,23],[22,15,22,22],[34,4,38,23],[39,4,39,23],[40,4,44,23],[45,4,56,23],[57,4,57,20],[58,4,58,6],[58,7,58,23],[59,4,59,6],[60,7,60,23],[69,4,69,19],[70,4,70,19],[71,5,71,23],[72,5,72,23],[73,5,73,23],[74,4,74,23],[75,4,75,23],[76,4,76,23],[77,4,77,23],[78,4,78,23],[80,5,80,18],[82,5,82,23]]}
[{"$nulls":26}," (требуется обновление)"]
[null,{"$f":"\"Код шаблона: \" & GetCode()","v":"Код шаблона: FAS.JKH.OPEN.INFO.QUARTER.WARM"}]
[null,{"$f":"\"Версия \" & GetVersion()","v":"Версия 1.1"}]
[]
[null,{"$f":"Титульный!E5","v":"Информация о наличии (отсутствии) технической возможности подключения к системе теплоснабжения, а также о регистрации и ходе реализации заявок о подключении к системе теплоснабжения "}]
[]
[{"$nulls":4},"• На рабочем месте должен быть установлен MS Office 2007 SP3, 2010, 2013, 2016 с полной версией MS Excel\n\n• Макросы во время работы должны быть включены (!)\n\n• Для корректной работы отчёта требуется выбрать низкий уровень безопасности\n(В меню MS Excel 2007/2010/2013/2016: Параметры Excel | Центр управления безопасностью | Параметры центра управления безопасностью | Параметры макросов | Включить все макросы | ОК)\n\n• Если Вы работаете в табличном процессоре MS Excel 2007 и выше, то можете использовать для работы формат XLSB (Двоичная книга Excel). При работе в формате XLSB заметно быстрее происходит сохранение файла, а также уменьшается размер по сравнению с форматами XLS и XLSM\n\n• Не рекомендуется снимать защиту с листов и каким-либо образом модифицировать защищаемые формулы и расчётные поля, в противном случае, отчёт будет отклонён системой\n\n• При сохранении не следует выбирать формат XLSX (Книга Excel), так как в указанном формате макросы, необходимые для работы отчёта, безвозвратно удаляются"]
{"$rows_empty":13}
[{"$nulls":4},"A"," - не обязательные для заполнения",{"$nulls":8},"A"," - с формулами и константами"]
[{"$nulls":4},"A"," - обязательные для заполнения",{"$nulls":8},"A"," - с выбором значений до двойному клику"]
{"$rows_empty":12}
[{"$nulls":4},"Если в предложенном Вам списке необходимая организация, МР/МО отсутствуют, обновите реестры с помощью кнопок\n\nВ результате синхронизации с базой данных список организаций (МР/МО) будет заменён актуальным (механизм синхронизации требует подключения к сети Интернет и основан на использовании протокола HTTPS (TCP порт 443))\n\nЕсли после обновления Вам не удалось найти необходимую организацию в списке, обратитесь к ответственному за поддержание реестра Вашего региона."]
{"$rows_empty":10}
[{"$nulls":4},"• При сохранении шаблона осуществляется проверка корректности данных, в том числе на наличие значений в ячейках, обязательных для заполнения\n\n• Если какая-то ячейка не удовлетворяет условию проверки, на лист «Проверка» добавляется гиперссылка на данную ячейку и указывается причина ошибки\n\n• В колонке «Статус» для каждого сообщения возможны 2 значения: ошибка и предупреждение\n\n• При наличии сообщений со статусом «Ошибка» шаблон будет отклонён системой и не будет загружен в хранилище данных, сообщения со статусом «Предупреждение» носят информационный характер, и такой шаблон будет принят системой"]
{"$rows_empty":11}
[{"$nulls":4},"Обратиться за помощью в службу технической поддержки"]
{"$rows_empty":11}
[{"$nulls":4},"Инструкция по загрузке сопроводительных материалов"]
[{"$nulls":4},"Инструкция по работе с отчетной формой"]
{"$rows_empty":7}
[{"$nulls":4},"При наличии подключения к Интернет, можно автоматически проверять наличие доступных обновлений. Выберите способ оповещения о наличии обновлений для отчёта:"]
[]
[{"$nulls":5},"проверять доступные обновления (рекомендуется)",{"$nulls":20},"y"]
[]
[{"$nulls":5},"никогда не проверять наличие обновлений (не рекомендуется)"]

{"sheet":"Лог обновления","index":1,"n_rows":15,"n_cols":3,"rows_kept":15,"hidden":true}
["Дата/Время","Сообщение","Статус"]
["2020-07-05T08:43:40","Проверка доступных обновлений...","Информация"]
["2020-07-05T08:43:42","Нет доступных обновлений для отчёта с кодом FAS.JKH.OPEN.INFO.QUARTER.WARM!","Информация"]
["2020-07-05T09:15:40","Проверка доступных обновлений...","Информация"]
["2020-07-05T09:15:41","Нет доступных обновлений для отчёта с кодом FAS.JKH.OPEN.INFO.QUARTER.WARM!","Информация"]
["2020-07-05T09:19:35","Проверка доступных обновлений...","Информация"]
["2020-07-05T09:19:36","Нет доступных обновлений для отчёта с кодом FAS.JKH.OPEN.INFO.QUARTER.WARM!","Информация"]
["2020-07-05T09:20:15","Проверка доступных обновлений...","Информация"]
["2020-07-05T09:20:16","Нет доступных обновлений для отчёта с кодом FAS.JKH.OPEN.INFO.QUARTER.WARM!","Информация"]
["2020-07-10T13:32:11","Проверка доступных обновлений...","Информация"]
["2020-07-10T13:32:13","Нет доступных обновлений для отчёта с кодом FAS.JKH.OPEN.INFO.QUARTER.WARM!","Информация"]
["2020-07-24T15:58:42","Проверка доступных обновлений...","Информация"]
["2020-07-24T15:58:43","Нет доступных обновлений для отчёта с кодом FAS.JKH.OPEN.INFO.QUARTER.WARM!","Информация"]
["2020-07-27T08:10:18","Проверка доступных обновлений...","Информация"]
["2020-07-27T08:10:20","Нет доступных обновлений для отчёта с кодом FAS.JKH.OPEN.INFO.QUARTER.WARM!","Информация"]

{"sheet":"Титульный","index":2,"n_rows":45,"n_cols":6,"rows_kept":45,"merged":[[4,4,4,5],[44,4,44,5]]}
[{"$nulls":5},26354251]
[]
[]
[{"$nulls":5},{"$f":"version","v":"Версия 1.1"}]
[{"$nulls":4},"Информация о наличии (отсутствии) технической возможности подключения к системе теплоснабжения, а также о регистрации и ходе реализации заявок о подключении к системе теплоснабжения "]
[]
[{"$nulls":4},"Субъект РФ","Амурская область"]
[]
[{"$nulls":4},"Публикация2","На сайте регулирующего органа"]
[]
[{"$nulls":4},"Отсутствует Интернет в границах территории МО, где организация осуществляет регулируемые виды деятельности","нет"]
[]
[{"$nulls":4},"Тип отчета","первичное раскрытие информации"]
[{"$nulls":4},"Дата внесения изменений в информацию, подлежащую раскрытию","05.07.2020"]
[]
[{"$nulls":4},"Применяется дифференциация тарифа по централизованным системам теплоснабжения?"]
[{"$nulls":4},"Информация по скольким централизованным системам теплоснабжения будет заполнена в шаблоне?"]
[]
[{"$nulls":5},"Отчетный период"]
[null,null,2020,null,"Год",2020]
[null,null,"II квартал",null,"Квартал","II квартал"]
[]
[{"$nulls":4},"Является ли данное юридическое лицо подразделением (филиалом) другой организации","да"]
[]
[]
[{"$nulls":4},"Наименование организации","АО \"ДГК\" филиал \"Амурская генерация\""]
[{"$nulls":4},"Наименование филиала","Амурская генерация"]
[{"$nulls":4},"ИНН","1434031363"]
[{"$nulls":4},"КПП","280102001"]
[{"$nulls":4},"Вид деятельности"]
[]
[{"$nulls":4},"Тип теплоснабжающей организации","Регулируемая организация"]
[]
[{"$nulls":4},"Почтовый адрес регулируемой организации","680000, г.Хабаровск, ул.Фрунзе, 49"]
[{"$nulls":4},"Фамилия, имя, отчество руководителя","Шукайлов Михаил Иннокентьевич"]
[]
[{"$nulls":5},"Ответственный за составление формы"]
[{"$nulls":4},"Фамилия, имя, отчество","Иванова Елена Сергеевна"]
[{"$nulls":4},"Должность","Ведущий инженер Управления технологического присоединения и перспективного развития"]
[{"$nulls":4},"(код) номер телефона","(4212) 26-58-61"]
[{"$nulls":4},"e-mail","ivanova-es@dgk.ru"]
[]
[]
[]
[{"$nulls":4},"В соответствии с пунктом 33.12 Постановления Правительства РФ от 5 июля 2013 г. № 570 \"О стандартах раскрытия информации теплоснабжающими организациями, теплосетевыми организациями и органами регулирования\" теплоснабжающей организацией и теплосетевой организацией в ценовых зонах теплоснабжения информация категории \"о наличии (об отсутствии) технической возможности подключения (технологического присоединения) к системе теплоснабжения, а также о регистрации и ходе реализации заявок на подключение (технологическое присоединение) к системе теплоснабжения\" раскрытию не подлежит"]

{"sheet":"Территории","index":3,"n_rows":22,"n_cols":18,"rows_kept":22,"merged":[[3,3,3,7],[5,3,5,4],[5,5,5,6],[7,3,7,4],[7,5,7,7],[7,8,7,11],[8,5,8,6],[8,8,8,9],[9,5,9,6],[9,8,9,9],[11,2,15,2],[11,3,15,3],[11,4,15,4],[12,5,14,5],[12,6,14,6],[12,7,14,7],[16,2,20,2],[16,3,20,3],[16,4,20,4],[17,5,19,5],[17,6,19,6],[17,7,19,7]]}
[{"$nulls":10},"МО","ОКТМО","МР"]
[]
[]
[{"$nulls":3},"Перечень муниципальных районов и муниципальных образований (территорий действия тарифа)"]
[]
[{"$nulls":5},"да"]
[]
[{"$nulls":3},"Территория действия тарифа",null,"Муниципальный район",null,null,"Муниципальное образование"]
[{"$nulls":3},"№ п/п","Наименование","№ п/п",null,"Наименование","№ п/п",null,"Наименование","ОКТМО"]
[{"$nulls":3},"1","2","3",null,"4","5",null,"6","7"]
[{"$nulls":3},0,null,"",null,null,"",{"$nulls":3},"размерженный МР",null,null,"флаг используемости территории на листе Перечень тарифов","копия территорий","МР (ОКТМО)"]
[null,"auto",null,1,"Город Благовещенск, Город Благовещенск (10701000);","",0,null,"","0",null,null,{"$f":"mergeValue(H12)","v":0},null,null,{"$f":"IF(ISERROR(MATCH(MID(Q12,1,250),MID(note_ter,1,250),0)),\"n\",\"y\")","v":"y"},"Город Благовещенск, Город Благовещенск (10701000);",{"$f":"K12&\"(\"&L12&\")\"","v":"()"}]
[null,"auto",{"$nulls":3},"",1,"Город Благовещенск","","0",null,null,{"$f":"mergeValue(H13)","v":"Город Благовещенск"},{"$nulls":4},{"$f":"K13&\"(\"&L13&\")\"","v":"()"}]
[null,"auto",{"$nulls":6},"",1,"Город Благовещенск","10701000",{"$f":"mergeValue(H14)","v":"Город Благовещенск"},{"$nulls":4},{"$f":"K14&\" (\"&L14&\")\"","v":"Город Благовещенск (10701000)"}]
[{"$nulls":8},"",null,""]
[{"$nulls":5},"","","",""]
[null,"auto",null,2,"Прогресс, Прогресс (10775000);","",0,null,"","0",null,null,{"$f":"mergeValue(H17)","v":0},null,null,{"$f":"IF(ISERROR(MATCH(MID(Q17,1,250),MID(note_ter,1,250),0)),\"n\",\"y\")","v":"y"},"Прогресс, Прогресс (10775000);",{"$f":"K17&\"(\"&L17&\")\"","v":"()"}]
[null,"auto",{"$nulls":3},"",1,"Прогресс","","0",null,null,{"$f":"mergeValue(H18)","v":"Прогресс"},{"$nulls":4},{"$f":"K18&\"(\"&L18&\")\"","v":"()"}]
[null,"auto",{"$nulls":6},"",1,"Прогресс","10775000",{"$f":"mergeValue(H19)","v":"Прогресс"},{"$nulls":4},{"$f":"K19&\" (\"&L19&\")\"","v":"Прогресс (10775000)"}]
[{"$nulls":8},"",null,""]
[{"$nulls":5},"","","",""]
[null,"man",null,null,"","",null,null,"",{"$nulls":7},"Добавить территорию действия тарифа"]

{"sheet":"Дифференциация","index":4,"n_rows":32,"n_cols":26,"rows_kept":32,"merged":[[3,3,3,8],[4,3,4,8],[5,0,6,5],[7,1,7,3],[7,4,7,5],[8,1,8,3],[8,4,8,5],[9,1,9,3],[9,4,9,5],[10,1,10,3],[10,4,10,5],[11,1,11,3],[12,1,12,3],[13,1,13,3],[17,0,18,0],[17,3,17,4],[17,5,17,8],[17,9,17,12],[18,6,18,7],[18,10,18,11],[19,6,19,7],[19,10,19,11],[21,3,25,3],[21,4,25,4],[21,5,25,5],[21,6,22,6],[21,7,22,7],[21,8,22,8],[21,9,22,9],[23,6,24,6],[23,7,24,7],[23,8,24,8],[23,9,24,9],[26,2,27,2]]}
[]
[]
[]
[{"$nulls":3},{"$f":"Титульный!E5","v":"Информация о наличии (отсутствии) технической возможности подключения к системе теплоснабжения, а также о регистрации и ходе реализации заявок о подключении к системе теплоснабжения "}]
[{"$nulls":3},{"$f":"IF(org=0,\"Не определено\",org)","v":"АО \"ДГК\" филиал \"Амурская генерация\""}]
{"$rows_empty":12}
[{"$nulls":3},"Вид деятельности",null,"Дифференциация по территориям оказания услуг",{"$nulls":3},"Дифференциация по централизованным системам коммунальной инфраструктуры"]
[{"$nulls":3},"№ п/п","Наименование","да/нет","№ п/п",null,"Наименование","да/нет","№ п/п",null,"Наименование"]
[{"$nulls":3},"1","2","3","4",null,"5","6","7",null,"8"]
[]
[{"$nulls":3},"1","Производство тепловой энергии. Комбинированная выработка с уст. мощностью производства электрической энергии 25 МВт и более; Производство. Теплоноситель; Передача. Тепловая энергия; Передача. Теплоноситель; Сбыт. Тепловая энергия; Сбыт. Теплоноситель; Подключение (технологическое присоединение) к системе теплоснабжения","да",null,1,"Город Благовещенск, Город Благовещенск (10701000);","да","","1","Благовещенская ТЭЦ",{"$nulls":10},"4190066;4190067;4190068;4190069;4190070;4190071;4190072","a",1705000]
[{"$nulls":10},"",null,""]
[{"$nulls":7},2,"Прогресс, Прогресс (10775000);","да","","1","Райчихинская ГРЭС",{"$nulls":11},"a",1705000]
[{"$nulls":10},"",null,""]
[{"$nulls":8},"",null,""]
[{"$nulls":4},"",{"$nulls":5},""]
[{"$nulls":10},""]
[]
[]
[]
[{"$nulls":8}," "]

{"sheet":"Форма 4.4","index":5,"n_rows":19,"n_cols":11,"rows_kept":19,"hidden":true,"merged":[[4,3,4,6],[5,3,5,6],[7,3,8,3],[7,4,8,4],[7,5,8,5],[7,6,7,7],[7,8,7,9],[7,10,8,10]]}
[{"$nulls":6},4,null,5]
[]
[]
[]
[{"$nulls":3},"Информация об основных потребительских характеристиках регулируемых товаров и услуг регулируемой организации и их соответствии установленным требованиям"]
[{"$nulls":3},{"$f":"IF(org=0,\"Не определено\",org)","v":"АО \"ДГК\" филиал \"Амурская генерация\""}]
[{"$nulls":6},22,null,24]
[{"$nulls":3},"№ п/п","Наименование параметра","Единица измерения","Вид деятельности:\r\n  - Производство тепловой энергии. Комбинированная выработка с уст. мощностью производства электрической энергии 25 МВт и более; Производство. Теплоноситель; Передача. Тепловая энергия; Передача. Теплоноситель; Сбыт. Тепловая энергия; Сбыт. Теплоноситель; Подключение (технологическое присоединение) к системе теплоснабжения\r\n\r\nТерритория оказания услуг:\r\n  - Город Благовещенск, Город Благовещенск (10701000);\r\n\r\nЦентрализованная система теплоснабжения:\r\n  - Благовещенская ТЭЦ",null,"Вид деятельности:\r\n  - Производство тепловой энергии. Комбинированная выработка с уст. мощностью производства электрической энергии 25 МВт и более; Производство. Теплоноситель; Передача. Тепловая энергия; Передача. Теплоноситель; Сбыт. Тепловая энергия; Сбыт. Теплоноситель; Подключение (технологическое присоединение) к системе теплоснабжения\r\n\r\nТерритория оказания услуг:\r\n  - Прогресс, Прогресс (10775000);\r\n\r\nЦентрализованная система теплоснабжения:\r\n  - Райчихинская ГРЭС",null,"Описание параметров формы"]
[{"$nulls":6},"Информация","Ссылка на документ","Информация","Ссылка на документ"]
[{"$nulls":3},"1","2","3",{"$f":"G1&\".1\"","v":"4.1"},null,{"$f":"I1&\".1\"","v":"5.1"}]
[{"$nulls":3},1,"Количество аварий на тепловых сетях","ед. на км",{"$nulls":4},"Указывается количество любых нарушений на тепловых сетях в расчете на один километр трубопровода."]
[{"$nulls":3},2,"Количество аварий на источниках тепловой энергии","ед. на источник",{"$nulls":4},"Указывается количество любых нарушений на источниках тепловой энергии"]
[{"$nulls":3},3,"Показатели надежности и качества, установленные в соответствии с законодательством Российской Федерации","x",{"$nulls":4},"В колонке «Ссылка на документ» указывается материал в виде ссылки на документ, содержащий информацию об установленных показателях надежности и качества, предварительно загруженный в хранилище данных ФГИС ЕИАС.\nВ случае, если показатели надежности и качества не утверждены в колонке «Информация» указывается «Не утверждены».\nИнформация в данной строке не указывается теплоснабжающими организациями, теплосетевыми организациями в ценовых зонах теплоснабжения."]
[{"$nulls":3},4,"Сведения о несоблюдении значений параметров качества теплоснабжения и (или) параметров, отражающих допустимые перерывы в теплоснабжении","x","x","x","x","x","Информация в строках 4.1 – 4.3 указывается в случае, если организация имеет статус единой теплоснабжающей организации."]
[{"$nulls":3},"4.1","количество составленных актов, подтверждающих факт превышения разрешенных отклонений значений параметров","шт."]
[{"$nulls":3},"4.2","средняя продолжительность устранения превышения разрешенных отклонений значений параметров","дн."]
[{"$nulls":3},"4.3","совокупная величина снижения размера платы за тепловую энергию (мощность) потребителям в связи с превышением разрешенных отклонений значений параметров","руб."]
[{"$nulls":3},5,"Доля числа исполненных в срок договоров о подключении","%",{"$nulls":4},"Указывается процент общего количества заключенных договоров о подключении (технологическом присоединении).\nИнформация в данной строке не указывается теплоснабжающими организациями, теплосетевыми организациями в ценовых зонах теплоснабжения."]
[{"$nulls":3},6,"Средняя продолжительность рассмотрения заявлений о подключении","Гкал/час",{"$nulls":4},"Информация в данной строке не указывается теплоснабжающими организациями, теплосетевыми организациями в ценовых зонах теплоснабжения."]

{"sheet":"Форма 1.0.1 | Форма 4.4","index":6,"n_rows":32,"n_cols":7,"rows_kept":32,"hidden":true,"merged":[[4,3,4,6],[5,3,5,6],[7,3,7,6],[8,3,8,5],[8,6,9,6],[19,3,19,6],[20,3,20,5],[20,6,21,6],[31,4,31,5]]}
[{"$nulls":6},4]
[]
[]
[]
[{"$nulls":3},"Форма 1.0.1 Основные параметры раскрываемой информации 1"]
[{"$nulls":3},{"$f":"IF(org=0,\"Не определено\",org)","v":"АО \"ДГК\" филиал \"Амурская генерация\""}]
[]
[null,null,22,"Форма 1.0.1"]
[{"$nulls":3},"Параметры формы",null,null,"Описание параметров формы"]
[{"$nulls":3},"№ п/п","Наименование параметра","Информация"]
[{"$nulls":3},"1",2,3,4]
[{"$nulls":3},1,"Дата заполнения/внесения изменений",{"$f":"IF(form_up_date=\"\",\"\",form_up_date)","v":"05.07.2020"},"Указывается календарная дата первичного заполнения или внесения изменений в форму в виде «ДД.ММ.ГГГГ»."]
[{"$nulls":3},"2.1","Наименование централизованной системы коммунальной инфраструктуры","Благовещенская ТЭЦ","Указывается наименование централизованной системы холодного водоснабжения/горячего водоснабжения/водоотведения/теплоснабжения, к которой относится размещаемая информация.\nВ случае наличия нескольких централизованных систем коммунальной инфраструктуры, информация по каждой из них указывается в отдельной строке. "]
[{"$nulls":3},"3.1","Наименование регулируемого вида деятельности","Производство тепловой энергии. Комбинированная выработка с уст. мощностью производства электрической энергии 25 МВт и более; Производство. Теплоноситель; Передача. Тепловая энергия; Передача. Теплоноситель; Сбыт. Тепловая энергия; Сбыт. Теплоноситель; Подключение (технологическое присоединение) к системе теплоснабжения","Указывается наименование вида регулируемой деятельности."]
[{"$nulls":3},"4.1","Территория оказания услуги по регулируемому виду деятельности","x"]
[{"$nulls":3},{"$f":"D15&\".1\"","v":"4.1.1"},"Субъект РФ",{"$f":"IF(region_name=\"\",\"\",region_name)","v":"Амурская область"},"Указывается наименование субъекта Российской Федерации"]
[{"$nulls":3},"4.1.1.1","муниципальный район","Город Благовещенск","Указывается наименование муниципального района, на территории которого организация оказывает услуги по регулируемому виду деятельности."]
[{"$nulls":3},"4.1.1.1.1","муниципальное образование","Город Благовещенск (10701000)","Указывается наименование и код муниципального района, муниципального образования в соответствии с Общероссийским классификатором территорий муниципальных образований (далее - ОКТМО), входящего в муниципальный район, на территории которого организация оказывает услуги по регулируемому виду деятельности.\nВ случае оказания услуг по регулируемому виду деятельности на территории нескольких муниципальных районов (муниципальных образований) данные по каждому их них указываются в отдельной строке."]
[]
[null,null,24,"Форма 1.0.1"]
[{"$nulls":3},"Параметры формы",null,null,"Описание параметров формы"]
[{"$nulls":3},"№ п/п","Наименование параметра","Информация"]
[{"$nulls":3},"1",2,3,4]
[{"$nulls":3},1,"Дата заполнения/внесения изменений",{"$f":"IF(form_up_date=\"\",\"\",form_up_date)","v":"05.07.2020"},"Указывается календарная дата первичного заполнения или внесения изменений в форму в виде «ДД.ММ.ГГГГ»."]
[{"$nulls":3},"2.1","Наименование централизованной системы коммунальной инфраструктуры","Райчихинская ГРЭС","Указывается наименование централизованной системы холодного водоснабжения/горячего водоснабжения/водоотведения/теплоснабжения, к которой относится размещаемая информация.\nВ случае наличия нескольких централизованных систем коммунальной инфраструктуры, информация по каждой из них указывается в отдельной строке. "]
[{"$nulls":3},"3.1","Наименование регулируемого вида деятельности","Производство тепловой энергии. Комбинированная выработка с уст. мощностью производства электрической энергии 25 МВт и более; Производство. Теплоноситель; Передача. Тепловая энергия; Передача. Теплоноситель; Сбыт. Тепловая энергия; Сбыт. Теплоноситель; Подключение (технологическое присоединение) к системе теплоснабжения","Указывается наименование вида регулируемой деятельности."]
[{"$nulls":3},"4.1","Территория оказания услуги по регулируемому виду деятельности","x"]
[{"$nulls":3},{"$f":"D27&\".1\"","v":"4.1.1"},"Субъект РФ",{"$f":"IF(region_name=\"\",\"\",region_name)","v":"Амурская область"},"Указывается наименование субъекта Российской Федерации"]
[{"$nulls":3},"4.1.1.1","муниципальный район","Прогресс","Указывается наименование муниципального района, на территории которого организация оказывает услуги по регулируемому виду деятельности."]
[{"$nulls":3},"4.1.1.1.1","муниципальное образование","Прогресс (10775000)","Указывается наименование и код муниципального района, муниципального образования в соответствии с Общероссийским классификатором территорий муниципальных образований (далее - ОКТМО), входящего в муниципальный район, на территории которого организация оказывает услуги по регулируемому виду деятельности.\nВ случае оказания услуг по регулируемому виду деятельности на территории нескольких муниципальных районов (муниципальных образований) данные по каждому их них указываются в отдельной строке."]
[]
[{"$nulls":4},"  1 Информация по данной форме публикуется при раскрытии информации по каждой из форм."]

{"sheet":"Форма 1.0.1 | Форма 4.6","index":7,"n_rows":32,"n_cols":7,"rows_kept":32,"merged":[[4,3,4,6],[5,3,5,6],[7,3,7,6],[8,3,8,5],[8,6,9,6],[19,3,19,6],[20,3,20,5],[20,6,21,6],[31,4,31,5]]}
[{"$nulls":6},4]
[]
[]
[]
[{"$nulls":3},"Форма 1.0.1 Основные параметры раскрываемой информации 1"]
[{"$nulls":3},{"$f":"IF(org=0,\"Не определено\",org)","v":"АО \"ДГК\" филиал \"Амурская генерация\""}]
[]
[null,null,22,"Форма 1.0.1"]
[{"$nulls":3},"Параметры формы",null,null,"Описание параметров формы"]
[{"$nulls":3},"№ п/п","Наименование параметра","Информация"]
[{"$nulls":3},"1",2,3,4]
[{"$nulls":3},1,"Дата заполнения/внесения изменений",{"$f":"IF(form_up_date=\"\",\"\",form_up_date)","v":"05.07.2020"},"Указывается календарная дата первичного заполнения или внесения изменений в форму в виде «ДД.ММ.ГГГГ»."]
[{"$nulls":3},"2.1","Наименование централизованной системы коммунальной инфраструктуры","Благовещенская ТЭЦ","Указывается наименование централизованной системы холодного водоснабжения/горячего водоснабжения/водоотведения/теплоснабжения, к которой относится размещаемая информация.\nВ случае наличия нескольких централизованных систем коммунальной инфраструктуры, информация по каждой из них указывается в отдельной строке. "]
[{"$nulls":3},"3.1","Наименование регулируемого вида деятельности","Производство тепловой энергии. Комбинированная выработка с уст. мощностью производства электрической энергии 25 МВт и более; Производство. Теплоноситель; Передача. Тепловая энергия; Передача. Теплоноситель; Сбыт. Тепловая энергия; Сбыт. Теплоноситель; Подключение (технологическое присоединение) к системе теплоснабжения","Указывается наименование вида регулируемой деятельности."]
[{"$nulls":3},"4.1","Территория оказания услуги по регулируемому виду деятельности","x"]
[{"$nulls":3},{"$f":"D15&\".1\"","v":"4.1.1"},"Субъект РФ",{"$f":"IF(region_name=\"\",\"\",region_name)","v":"Амурская область"},"Указывается наименование субъекта Российской Федерации"]
[{"$nulls":3},"4.1.1.1","муниципальный район","Город Благовещенск","Указывается наименование муниципального района, на территории которого организация оказывает услуги по регулируемому виду деятельности."]
[{"$nulls":3},"4.1.1.1.1","муниципальное образование","Город Благовещенск (10701000)","Указывается наименование и код муниципального района, муниципального образования в соответствии с Общероссийским классификатором территорий муниципальных образований (далее - ОКТМО), входящего в муниципальный район, на территории которого организация оказывает услуги по регулируемому виду деятельности.\nВ случае оказания услуг по регулируемому виду деятельности на территории нескольких муниципальных районов (муниципальных образований) данные по каждому их них указываются в отдельной строке."]
[]
[null,null,24,"Форма 1.0.1"]
[{"$nulls":3},"Параметры формы",null,null,"Описание параметров формы"]
[{"$nulls":3},"№ п/п","Наименование параметра","Информация"]
[{"$nulls":3},"1",2,3,4]
[{"$nulls":3},1,"Дата заполнения/внесения изменений",{"$f":"IF(form_up_date=\"\",\"\",form_up_date)","v":"05.07.2020"},"Указывается календарная дата первичного заполнения или внесения изменений в форму в виде «ДД.ММ.ГГГГ»."]
[{"$nulls":3},"2.1","Наименование централизованной системы коммунальной инфраструктуры","Райчихинская ГРЭС","Указывается наименование централизованной системы холодного водоснабжения/горячего водоснабжения/водоотведения/теплоснабжения, к которой относится размещаемая информация.\nВ случае наличия нескольких централизованных систем коммунальной инфраструктуры, информация по каждой из них указывается в отдельной строке. "]
[{"$nulls":3},"3.1","Наименование регулируемого вида деятельности","Производство тепловой энергии. Комбинированная выработка с уст. мощностью производства электрической энергии 25 МВт и более; Производство. Теплоноситель; Передача. Тепловая энергия; Передача. Теплоноситель; Сбыт. Тепловая энергия; Сбыт. Теплоноситель; Подключение (технологическое присоединение) к системе теплоснабжения","Указывается наименование вида регулируемой деятельности."]
[{"$nulls":3},"4.1","Территория оказания услуги по регулируемому виду деятельности","x"]
[{"$nulls":3},{"$f":"D27&\".1\"","v":"4.1.1"},"Субъект РФ",{"$f":"IF(region_name=\"\",\"\",region_name)","v":"Амурская область"},"Указывается наименование субъекта Российской Федерации"]
[{"$nulls":3},"4.1.1.1","муниципальный район","Прогресс","Указывается наименование муниципального района, на территории которого организация оказывает услуги по регулируемому виду деятельности."]
[{"$nulls":3},"4.1.1.1.1","муниципальное образование","Прогресс (10775000)","Указывается наименование и код муниципального района, муниципального образования в соответствии с Общероссийским классификатором территорий муниципальных образований (далее - ОКТМО), входящего в муниципальный район, на территории которого организация оказывает услуги по регулируемому виду деятельности.\nВ случае оказания услуг по регулируемому виду деятельности на территории нескольких муниципальных районов (муниципальных образований) данные по каждому их них указываются в отдельной строке."]
[]
[{"$nulls":4},"  1 Информация по данной форме публикуется при раскрытии информации по каждой из форм."]

{"sheet":"Форма 4.6","index":8,"n_rows":18,"n_cols":9,"rows_kept":18,"merged":[[4,3,4,6],[5,3,5,6],[7,3,8,3],[7,4,8,4],[7,5,8,5],[7,8,8,8]]}
[{"$nulls":6},4,5]
[{"$nulls":5},"Гкал/час",null,null,"Указывается резерв мощности для системы теплоснабжения, тариф для которой не является отличным от тарифов других систем теплоснабжения регулируемой организации.\nПри использовании регулируемой организацией нескольких систем теплоснабжения информация о резерве мощности таких систем указывается в отношении каждой системы теплоснабжения в отдельных строках."]
[]
[]
[{"$nulls":3},{"$f":"Титульный!E5","v":"Информация о наличии (отсутствии) технической возможности подключения к системе теплоснабжения, а также о регистрации и ходе реализации заявок о подключении к системе теплоснабжения "}]
[{"$nulls":3},{"$f":"IF(org=0,\"Не определено\",org)","v":"АО \"ДГК\" филиал \"Амурская генерация\""}]
[{"$nulls":6},22,24]
[{"$nulls":3},"№ п/п","Наименование параметра","Единица измерения","Вид деятельности:\r\n  - Производство тепловой энергии. Комбинированная выработка с уст. мощностью производства электрической энергии 25 МВт и более; Производство. Теплоноситель; Передача. Тепловая энергия; Передача. Теплоноситель; Сбыт. Тепловая энергия; Сбыт. Теплоноситель; Подключение (технологическое присоединение) к системе теплоснабжения\r\n\r\nТерритория оказания услуг:\r\n  - Город Благовещенск, Город Благовещенск (10701000);\r\n\r\nЦентрализованная система теплоснабжения:\r\n  - Благовещенская ТЭЦ","Вид деятельности:\r\n  - Производство тепловой энергии. Комбинированная выработка с уст. мощностью производства электрической энергии 25 МВт и более; Производство. Теплоноситель; Передача. Тепловая энергия; Передача. Теплоноситель; Сбыт. Тепловая энергия; Сбыт. Теплоноситель; Подключение (технологическое присоединение) к системе теплоснабжения\r\n\r\nТерритория оказания услуг:\r\n  - Прогресс, Прогресс (10775000);\r\n\r\nЦентрализованная система теплоснабжения:\r\n  - Райчихинская ГРЭС","Описание параметров формы"]
[{"$nulls":6},"Информация","Информация"]
[{"$nulls":3},"1","2","3",{"$f":"G1&\".1\"","v":"4.1"},{"$f":"H1&\".1\"","v":"5.1"}]
[{"$nulls":3},1,"Количество поданных заявок","ед",10,1,"Указывается количество поданных заявок на подключение (технологическое присоединение) к системе теплоснабжения в течение отчетного квартала."]
[{"$nulls":3},2,"Количество исполненных заявок","ед",0,0,"Указывается количество исполненных заявок на подключение (технологическое присоединение) к системе теплоснабжения в течение отчетного квартала."]
[{"$nulls":3},3,"Количество заявок с решением об отказе в подключении","ед",0,0,"Указывается количество заявок с решением об отказе о подключении (технологическому присоединению) к системе теплоснабжения в течение отчетного квартала."]
[{"$nulls":3},4,"Причины отказа в подключении","x",null,null,"Указывается текстовое описание причин принятия решений об отказе в подключении (технологическом присоединении) к системе теплоснабжения.\nНе заполняется в случае, если решения об отказе в подключении (технологическом присоединении) в течение отчетного периода не принимались."]
[{"$nulls":3},5,"Резерв мощности системы теплоснабжения в течение квартала, в том числе:","Гкал/час",{"$f":"SUM(G16:G18)","v":{"v":72.8,"d":"72.80"}},{"$f":"SUM(H16:H18)","v":176.13},"Указывается резерв мощности системы теплоснабжения (совокупности систем теплоснабжения в случае, если для них установлены одинаковые тарифы в сфере теплоснабжения.\nВ случае если регулируемыми организациями оказываются услуги по теплоснабжению по нескольким технологически не связанным между собой системам теплоснабжения, и если в отношении указанных систем устанавливаются различные тарифы в сфере теплоснабжения, то информация раскрывается отдельно по каждой системе теплоснабжения."]
[{"$nulls":3},"5.0"]
[{"$nulls":3},"5.1","Резерв мощности системы теплоснабжения в течение квартала, в том числе:","Гкал/час",{"v":72.8,"d":"72.80"},176.13,"Указывается резерв мощности для системы теплоснабжения, тариф для которой не является отличным от тарифов других систем теплоснабжения регулируемой организации.\nПри использовании регулируемой организацией нескольких систем теплоснабжения информация о резерве мощности таких систем указывается в отношении каждой системы теплоснабжения в отдельных строках."]
[{"$nulls":4},"Добавить централизованную систему теплоснабжения"]

{"sheet":"Сведения об изменении","index":9,"n_rows":14,"n_cols":5,"rows_kept":14,"hidden":true,"merged":[[6,3,6,4],[7,3,7,4]]}
[]
[]
[]
[]
[]
[]
[{"$nulls":3},"Сведения об изменениях в первоначально опубликованной информации"]
[{"$nulls":3},{"$f":"IF(org=0,\"Не определено\",org)","v":"АО \"ДГК\" филиал \"Амурская генерация\""}]
[]
[{"$nulls":3},"№ п/п","Сведения"]
[{"$nulls":3},"1","2"]
[{"$nulls":3},0]
[{"$nulls":3},1]
[{"$nulls":4},"Добавить строку"]

{"sheet":"Форма 1.0.2","index":10,"n_rows":15,"n_cols":13,"rows_kept":15,"hidden":true,"merged":[[4,3,4,9],[7,3,7,9],[7,10,9,10],[8,3,9,3],[8,4,8,5],[8,6,8,9],[11,10,12,10],[14,4,14,9]]}
[]
[]
[]
[]
[{"$nulls":3},"Форма 1.0.2 Информация о публикации в печатных изданиях 2"]
[]
[]
[{"$nulls":3},"Параметры формы",{"$nulls":6},"Описание параметров формы"]
[{"$nulls":3},"№ п/п","Форма публикации",null,"Официальное печатное издание"]
[{"$nulls":4},"Номер","Наименование","Наименование","Номер","Дата выпуска","Ссылка на документ"]
[{"$nulls":3},"1","2","3","4","5","6","7","8"]
["3","",null,"1",{"$nulls":6},"В колонке «Дата выпуска» дата выпуска печатного издания указывается в виде «ДД.ММ.ГГГГ».\nВ колонке «Ссылка на документ» указывается ссылка на отсканированную копию печатного издания, предварительно загруженную в хранилище федеральной государственной информационной системы «Единая информационно-аналитическая система «Федеральный орган регулирования - региональные органы регулирования - субъекты регулирования» (далее – ФГИС ЕИАС), с опубликованной информацией.\nВ случае публикации информации в нескольких печатных изданиях информация по каждому из них указывается в отдельной строке.",null,{"$f":"IF(ISERROR(INDEX(kind_of_nameforms,MATCH(E12,kind_of_forms,0),1)),\"\",INDEX(kind_of_nameforms,MATCH(E12,kind_of_forms,0),1))","v":""}]
[{"$nulls":4},"Добавить строку"]
[]
[{"$nulls":4},"2 В данной форме публикуется информация по каждой из форм раскрытия, данные в которой относятся к муниципальному образованию, в котором отсутствует доступ в информационно-телекоммуникационную сеть «Интернет» (далее – сеть «Интернет»)."]

{"sheet":"Комментарии","index":11,"n_rows":13,"n_cols":5,"rows_kept":13,"merged":[[6,3,6,4],[7,3,7,4]]}
[]
[]
[]
[]
[]
[]
[{"$nulls":3},"Комментарии"]
[{"$nulls":3},{"$f":"IF(org=0,\"Не определено\",org)","v":"АО \"ДГК\" филиал \"Амурская генерация\""}]
[]
[{"$nulls":3},"№ п/п","Комментарий"]
[{"$nulls":3},"1","2"]
[{"$nulls":3},0]
[{"$nulls":4},"Добавить"]

{"sheet":"Проверка","index":12,"n_rows":4,"n_cols":5,"rows_kept":4,"merged":[[1,1,1,4]]}
[]
[null,"Результат проверки"]
[]
[null,"Ссылка1","Ссылка2","Причина","Статус"]

{"sheet":"modProv","index":13,"n_rows":0,"n_cols":0,"rows_kept":0,"hidden":true}

{"sheet":"modReestr","index":14,"n_rows":0,"n_cols":0,"rows_kept":0,"hidden":true}

{"sheet":"AllSheetsInThisWorkbook","index":15,"n_rows":40,"n_cols":2,"rows_kept":40,"hidden":true}
["Расчетные листы","Скрытые листы"]
["Инструкция","modProv"]
["Лог обновления","modReestr"]
["Титульный","AllSheetsInThisWorkbook"]
["Территории","TEHSHEET"]
["Дифференциация","modCheckCyan"]
["Форма 4.4","modInfo"]
["Форма 1.0.1 | Форма 4.6","et_union_hor"]
["Форма 4.6","et_union_vert"]
["Сведения об изменении","modList00"]
["Форма 1.0.2","modList01"]
["Комментарии","modList02"]
["Проверка","modList03"]
[null,"modList04"]
[null,"modList05"]
[null,"modList07"]
[null,"modList09"]
[null,"modHTTP"]
[null,"modfrmRegion"]
[null,"MR_LIST"]
[null,"REESTR_VT"]
[null,"REESTR_VED"]
[null,"modfrmReestrObj"]
[null,"DataOrg"]
[null,"modfrmReestr"]
[null,"modUpdTemplMain"]
[null,"REESTR_ORG"]
[null,"modClassifierValidate"]
[null,"modHyp"]
[null,"modfrmDateChoose"]
[null,"modComm"]
[null,"modThisWorkbook"]
[null,"REESTR_MO"]
[null,"REESTR_MO_FILTER"]
[null,"modfrmReestrMR"]
[null,"modServiceModule"]
[null,"modfrmCheckUpdates"]
[null,"REESTR_DS"]
[null,"REESTR_CHS"]
[null,"REESTR_LINK"]

{"sheet":"TEHSHEET","index":16,"n_rows":87,"n_cols":20,"rows_kept":87,"hidden":true,"merged":[[0,18,0,19]]}
["REGION",null,"year_list","logical","Месяц\n(MONTH)","Квартал\n(QUARTER)","Месяц\n(kind_of_publication)","Единица измерения объема оказываемых услуг ГВС\n/kind_of_unit_GVS/","Вид тарифа\n/list_of_tariff/","mr_id","версия шаблона\n (DocProp_Version)","0.1","Тип отчета\ndata_type","type_org_list",{"$nulls":4},"Перечень форм\n(kind_of_forms)"]
["Алтайский край",null,2013,"да","январь","I квартал","На официальном сайте организации","тыс.куб.м/сутки",null,52,"код шаблона\n(DocProp_TemplateCode)","FAS.JKH.OPEN.INFO.QUARTER.HVS","первичное раскрытие информации","Регулируемая организация",{"$nulls":4},"Форма 1.0.1","Основные параметры раскрываемой информации"]
["Амурская область",null,2014,"нет","февраль","II квартал","На сайте регулирующего органа","Гкал/час","Без дифференциации","sys_id","сфера\n(TSphere)","ХВС","изменения в раскрытой ранее информации","Единая теплоснабжающая организация",{"$nulls":4},"Форма 4.6",{"$f":"Титульный!E5","v":"Информация о наличии (отсутствии) технической возможности подключения к системе теплоснабжения, а также о регистрации и ходе реализации заявок о подключении к системе теплоснабжения "}]
["Архангельская область",null,2015,null,"март","III квартал",null,"куб.м/час",null,104,"сфера(латиница)\n(TSphere_trans)","VS",null,"Теплоснабжающая организация в ценовой зоне теплоснабжения"]
["Астраханская область",null,2016,null,"апрель","IV квартал",{"$nulls":4},"сфера расширено\n(TSphere_full)",null,null,"Теплосетевая организация в ценовой зоне теплоснабжения"]
["Белгородская область",null,2017,null,"май"]
["Брянская область",null,2018,null,"июнь"]
["Владимирская область",null,2019,null,"июль",{"$nulls":5},"true"]
["Волгоградская область",null,2020,null,"август"]
["Вологодская область",{"$nulls":3},"сентябрь"]
["Воронежская область",{"$nulls":3},"октябрь"]
["г.Байконур",{"$nulls":3},"ноябрь"]
["г. Москва",{"$nulls":3},"декабрь"]
["г.Санкт-Петербург"]
["г.Севастополь"]
["Еврейская автономная область",{"$nulls":5},"Текущая дата"]
["Забайкальский край",null,"Организация",{"$f":"IF(f_year = \"\",\"\", IF(LEN(f_quart)=0,\"\",IF(f_quart=\"I квартал\", \"01.01.\"&f_year,IF(f_quart=\"II квартал\",\"01.04.\"&f_year,(IF(f_quart=\"III квартал\", \"01.07.\"&f_year,\"01.10.\"&f_year)))) ))","v":"01.04.2020"},{"$f":"IF(f_year = \"\",\"\", IF(LEN(f_quart)=0,\"\",IF(f_quart=\"I квартал\", \"31.03.\"& f_year,IF(f_quart=\"II квартал\",\"30.06.\"& f_year,(IF(f_quart=\"III квартал\", \"30.09.\"& f_year,\"31.12.\"& f_year)))) ))","v":"30.06.2020"},null,"05.07.2020 7:20:14"]
["Ивановская область"]
["Иркутская область",{"$nulls":5},"Признак изменения данных на листе Доступ к товарам и услугам"]
["Кабардино-Балкарская республика",null,"Виды деятельности",{"$nulls":3},true]
["Калининградская область"]
["Калужская область"]
["Камчатский край"]
["Карачаево-Черкесская республика"]
["Кемеровская область"]
["Кировская область"]
["Костромская область"]
["Краснодарский край"]
["Красноярский край"]
["Курганская область"]
["Курская область"]
["Ленинградская область"]
["Липецкая область"]
["Магаданская область"]
["Московская область"]
["Мурманская область"]
["Ненецкий автономный округ"]
["Нижегородская область"]
["Новгородская область"]
["Новосибирская область"]
["Омская область"]
["Оренбургская область"]
["Орловская область"]
["Пензенская область"]
["Пермский край"]
["Приморский край"]
["Псковская область"]
["Республика Адыгея"]
["Республика Алтай"]
["Республика Башкортостан"]
["Республика Бурятия"]
["Республика Дагестан"]
["Республика Ингушетия"]
["Республика Калмыкия"]
["Республика Карелия"]
["Республика Коми"]
["Республика Крым"]
["Республика Марий Эл"]
["Республика Мордовия"]
["Республика Саха (Якутия)"]
["Республика Северная Осетия-Алания"]
["Республика Татарстан"]
["Республика Тыва"]
["Республика Хакасия"]
["Ростовская область"]
["Рязанская область"]
["Самарская область"]
["Саратовская область"]
["Сахалинская область"]
["Свердловская область"]
["Смоленская область"]
["Ставропольский край"]
["Тамбовская область"]
["Тверская область"]
["Томская область"]
["Тульская область"]
["Тюменская область"]
["Удмуртская республика"]
["Ульяновская область"]
["Хабаровский край"]
["Ханты-Мансийский автономный округ"]
["Челябинская область"]
["Чеченская республика"]
["Чувашская республика"]
["Чукотский автономный округ"]
["Ямало-Ненецкий автономный округ"]
["Ярославская область"]

{"sheet":"modCheckCyan","index":17,"n_rows":17,"n_cols":1,"rows_kept":17,"hidden":true}
[]
[{"$f":"IF('Сведения об изменении'!$E$13=\"\",1,0)","v":1}]
[{"$f":"IF(Дифференциация!$E$22=\"\",1,0)","v":0}]
[{"$f":"IF(Территории!$E$12=\"\",1,0)","v":0}]
[{"$f":"IF(Территории!$E$17=\"\",1,0)","v":0}]
[{"$f":"IF(Дифференциация!$I$22=\"\",1,0)","v":0}]
[{"$f":"IF(Дифференциация!$I$24=\"\",1,0)","v":0}]
[{"$f":"IF(Дифференциация!$J$24=\"\",1,0)","v":0}]
[{"$f":"IF(Дифференциация!$M$22=\"\",1,0)","v":0}]
[{"$f":"IF(Дифференциация!$M$24=\"\",1,0)","v":0}]
[{"$f":"IF('Форма 4.6'!$G$11=\"\",1,0)","v":0}]
[{"$f":"IF('Форма 4.6'!$H$11=\"\",1,0)","v":0}]
[{"$f":"IF('Форма 4.6'!$G$12=\"\",1,0)","v":0}]
[{"$f":"IF('Форма 4.6'!$H$12=\"\",1,0)","v":0}]
[{"$f":"IF('Форма 4.6'!$G$13=\"\",1,0)","v":0}]
[{"$f":"IF('Форма 4.6'!$H$13=\"\",1,0)","v":0}]
[{"$f":"IF('Форма 4.6'!$E$17=\"\",1,0)","v":0}]

{"sheet":"modInfo","index":18,"n_rows":11,"n_cols":2,"rows_kept":11,"hidden":true,"merged":[[0,3,0,10],[1,3,1,10],[2,3,2,10],[3,3,3,10],[4,3,4,10]]}
[null,"Территории"]
[1,"Наименование территории оказания услуг для целей идентификации"]
[2,"Муниципальные районы и муниципальные образования, на территории которых осуществляется оказание услуг"]
[null,"Дифференциация"]
[1,"В случае, если регулируемая организация осуществляет несколько видов деятельности, информация о которых подлежит раскрытию, информация по каждому виду деятельности раскрывается отдельно."]
[2,"Поле заполняется выбором значений из списка. Если значений для выбора нет - убедитесь, что лист \"Территории\" заполнен."]
[3,"Условное наименование централизованной системы коммунальной инфраструктуры для целей идентификации."]
[4,"В случае, если регулируемыми организациями оказываются услуги по нескольким технологически не связанным между собой  централизованным системам коммунальной инфраструктуры и если в отношении указанных централизованных систем устанавливаются различные тарифы, то информация раскрывается отдельно по каждой централизованной системе коммунальной инфраструктуры."]
[null,"Сведения об изменении"]
[1,"Лист заполняется в случае, если на Титульном листе в поле \"Тип отчета\" выбрано значение «Изменения в раскрытой ранее информации»."]
[null,"Нет доступных обновлений, версия отчёта актуальна"]

{"sheet":"et_union_hor","index":19,"n_rows":60,"n_cols":26,"rows_kept":60,"hidden":true,"merged":[[14,2,15,2],[14,3,15,3],[14,4,15,4],[19,2,20,2],[19,5,20,5],[19,6,20,6],[19,7,20,7],[28,3,30,3],[28,4,30,4],[28,5,30,5],[28,6,29,6],[28,7,29,7],[28,8,29,8],[28,9,29,9],[34,6,35,6],[34,7,35,7],[34,8,35,8],[34,9,35,9],[49,3,49,6],[50,3,50,5],[50,6,51,6]]}
[]
[]
["et_Comm"]
[]
[]
[]
["et_List04"]
[]
[]
[]
[]
[]
["et_List09_0"]
[]
[null,"auto",null,1,null,null,0,null,null,"0",null,null,{"$f":"mergeValue(H15)","v":0},null,null,{"$f":"IF(ISERROR(MATCH(MID(Q15,1,250),MID(note_ter,1,250),0)),\"n\",\"y\")","v":"y"},null,{"$f":"K15&\"(\"&L15&\")\"","v":"()"}]
[{"$nulls":7},"Добавить МР"]
[]
["et_List09_1"]
[]
[null,"auto",{"$nulls":4},0,null,null,"0",null,null,{"$f":"mergeValue(H20)","v":0},{"$nulls":4},{"$f":"K20&\"(\"&L20&\")\"","v":"()"}]
[{"$nulls":10},"Добавить МО"]
[]
["et_List09_2"]
[]
[null,"auto",{"$nulls":7},0,null,null,{"$f":"mergeValue(H25)","v":0},{"$nulls":4},{"$f":"K25&\" (\"&L25&\")\"","v":" ()"}]
[]
["et_List07_1"]
[]
[{"$nulls":3},"1",null,"нет",null,1,null,"нет",null,"1",{"$nulls":12},"a",1705000]
[{"$nulls":12},"Добавить централизованную систему коммунальной инфраструктуры"]
[{"$nulls":8},"Добавить описание территории оказания услуг"]
[]
["et_List07_4"]
[]
[{"$nulls":7},1,null,"нет",null,"1",{"$nulls":12},"a",1705000]
[{"$nulls":12},"Добавить централизованную систему коммунальной инфраструктуры"]
[]
["et_List07_5"]
[]
[{"$nulls":11},"1",{"$nulls":12},"a",1705000]
[]
[]
["et_List03"]
[]
["3","",{"$nulls":10},{"$f":"IF(ISERROR(INDEX(kind_of_nameforms,MATCH(E45,kind_of_forms,0),1)),\"\",INDEX(kind_of_nameforms,MATCH(E45,kind_of_forms,0),1))","v":""}]
[]
["et_List02_st","et_List02_ter","et_List02_mr","et_List02_mo"]
[]
[]
[{"$nulls":3},"Форма 1.0.1"]
[{"$nulls":3},"Параметры формы",null,null,"Описание параметров формы"]
[{"$nulls":3},"№ п/п","Наименование параметра","Информация"]
[{"$nulls":3},"1",2,3,4]
[{"$nulls":3},1,"Дата заполнения/внесения изменений",{"$f":"IF(form_up_date=\"\",\"\",form_up_date)","v":"05.07.2020"},"Указывается календарная дата первичного заполнения или внесения изменений в форму в виде «ДД.ММ.ГГГГ»."]
[{"$nulls":3},"2.1","Наименование централизованной системы коммунальной инфраструктуры",null,"Указывается наименование централизованной системы холодного водоснабжения/горячего водоснабжения/водоотведения/теплоснабжения, к которой относится размещаемая информация.\nВ случае наличия нескольких централизованных систем коммунальной инфраструктуры, информация по каждой из них указывается в отдельной строке. "]
[{"$nulls":3},"3.1","Наименование регулируемого вида деятельности",null,"Указывается наименование вида регулируемой деятельности."]
[{"$nulls":3},"4.1","Территория оказания услуги по регулируемому виду деятельности","x"]
[{"$nulls":3},{"$f":"D57&\".1\"","v":"4.1.1"},"Субъект РФ",{"$f":"IF(region_name=\"\",\"\",region_name)","v":"Амурская область"},"Указывается наименование субъекта Российской Федерации"]
[{"$nulls":3},"4.1.1.1","муниципальный район",null,"Указывается наименование муниципального района, на территории которого организация оказывает услуги по регулируемому виду деятельности."]
[{"$nulls":3},"4.1.1.1.1","муниципальное образование",null,"Указывается наименование и код муниципального района, муниципального образования в соответствии с Общероссийским классификатором территорий муниципальных образований (далее - ОКТМО), входящего в муниципальный район, на территории которого организация оказывает услуги по регулируемому виду деятельности.\nВ случае оказания услуг по регулируемому виду деятельности на территории нескольких муниципальных районов (муниципальных образований) данные по каждому их них указываются в отдельной строке."]

{"sheet":"et_union_vert","index":20,"n_rows":0,"n_cols":0,"rows_kept":0,"hidden":true}

{"sheet":"modList00","index":21,"n_rows":0,"n_cols":0,"rows_kept":0,"hidden":true}

{"sheet":"modList01","index":22,"n_rows":0,"n_cols":0,"rows_kept":0,"hidden":true}

{"sheet":"modList02","index":23,"n_rows":0,"n_cols":0,"rows_kept":0,"hidden":true}

{"sheet":"modList03","index":24,"n_rows":0,"n_cols":0,"rows_kept":0,"hidden":true}

{"sheet":"modList04","index":25,"n_rows":0,"n_cols":0,"rows_kept":0,"hidden":true}

{"sheet":"modList05","index":26,"n_rows":0,"n_cols":0,"rows_kept":0,"hidden":true}

{"sheet":"modList07","index":27,"n_rows":0,"n_cols":0,"rows_kept":0,"hidden":true,"merged":[[5,0,6,1],[17,0,18,0]]}

{"sheet":"modList09","index":28,"n_rows":0,"n_cols":0,"rows_kept":0,"hidden":true}

{"sheet":"modHTTP","index":29,"n_rows":0,"n_cols":0,"rows_kept":0,"hidden":true}

{"sheet":"modfrmRegion","index":30,"n_rows":0,"n_cols":0,"rows_kept":0,"hidden":true}

{"sheet":"MR_LIST","index":31,"n_rows":0,"n_cols":0,"rows_kept":0,"hidden":true}

{"sheet":"REESTR_VT","index":32,"n_rows":0,"n_cols":0,"rows_kept":0,"hidden":true}

{"sheet":"REESTR_VED","index":33,"n_rows":11,"n_cols":2,"rows_kept":11,"hidden":true}
["ID_TARIFF_NAME","VED_NAME"]
[4190064,"Производство тепловой энергии. Некомбинированная выработка"]
[4190065,"Производство тепловой энергии. Комбинированная выработка с уст. мощностью производства электрической энергии менее 25 МВт"]
[4190066,"Производство тепловой энергии. Комбинированная выработка с уст. мощностью производства электрической энергии 25 МВт и более"]
[4190067,"Производство. Теплоноситель"]
[4190068,"Передача. Тепловая энергия"]
[4190069,"Передача. Теплоноситель"]
[4190070,"Сбыт. Тепловая энергия"]
[4190071,"Сбыт. Теплоноситель"]
[4190072,"Подключение (технологическое присоединение) к системе теплоснабжения"]
[4190073,"Поддержание резервной тепловой мощности при отсутствии потребления тепловой энергии"]

{"sheet":"modfrmReestrObj","index":34,"n_rows":0,"n_cols":0,"rows_kept":0,"hidden":true}

{"sheet":"DataOrg","index":35,"n_rows":0,"n_cols":0,"rows_kept":0,"hidden":true}

{"sheet":"modfrmReestr","index":36,"n_rows":0,"n_cols":0,"rows_kept":0,"hidden":true}

{"sheet":"modUpdTemplMain","index":37,"n_rows":0,"n_cols":0,"rows_kept":0,"hidden":true}

{"sheet":"REESTR_ORG","index":38,"n_rows":247,"n_cols":10,"rows_kept":247,"hidden":true}
["№","REGION_ID","REGION_NAME","RST_ORG_ID","ORG_NAME","INN_NAME","KPP_NAME","ORG_START_DATE","ORG_END_DATE"]
[1,"2666","Амурская область","27576762","20 учебный центр ПУ ФСБ России по Амурской области","2801106436","282703001",null,null,"WARM"]
[2,"2666","Амурская область","26355326","АО \"Амурские коммунальные системы\"","2801091892","280101001",null,null,"WARM"]
[3,"2666","Амурская область","27712709","АО \"Амурский уголь\"","2801170255","280601001",null,null,"WARM"]
[4,"2666","Амурская область","27051081","АО \"ДГК\"","1434031363","997450001",null,null,"WARM"]
[5,"2666","Амурская область","27511456","АО \"ДГК\" \"Амурская генерация\" СП \"Благовещенская ТЭЦ\"","1434031363","280102002",null,null,"WARM"]
[6,"2666","Амурская область","26813407","АО \"ДГК\" СП Райчихинская ГРЭС","1434031363","280632001",null,null,"WARM"]
[7,"2666","Амурская область","26354251","АО \"ДГК\" филиал \"Амурская генерация\"","1434031363","280102001",null,null,"WARM"]
[8,"2666","Амурская область","26515061","АО \"ДРСК\" филиал \"Амурские электрические сети\"","2801108200","280102003",null,null,"WARM"]
[9,"2666","Амурская область","30825945","АО \"ЖКХ-Ресурс-Райчихинский\"","2806009242","280601001","12-07-2016 00:00:00",null,"WARM"]
[10,"2666","Амурская область","26612059","АО \"Коммунальные системы БАМа\"","2808023556","280801001",null,null,"WARM"]
[11,"2666","Амурская область","28975998","АО \"Луч\"","2816009756","281601001",null,null,"WARM"]
[12,"2666","Амурская область","26320300","АО \"Прииск Соловьевский\"","2828002272","282801001",null,null,"WARM"]
[13,"2666","Амурская область","26642065","Акционерное общество \"Транснефть - Энерготерминал\"","7703639266","282645002",null,null,"WARM"]
[14,"2666","Амурская область","28463470","Березовское МУП \"Универсал\"","2816009668","281601001",null,null,"WARM"]
[15,"2666","Амурская область","27712869","Вагонное ремонтное депо Белогорск- обособленное структурное подразделение Иркутского филиала ОАО \"ВРК-3\"","7708737500","280445001","14-04-2011 00:00:00",null,"WARM"]
[16,"2666","Амурская область","28040235","ГАУ АО \"Амурская авиабаза\"","2801118992","280101001",null,null,"WARM"]
[17,"2666","Амурская область","29648956","ГБУ АО \"Амурская облветлаборатория\"","2801095590","280101001",null,null,"WARM"]
[18,"2666","Амурская область","30347598","ГСУВАУ Юхтинская спецшкола","2823001028","282301001",null,null,"WARM"]
[19,"2666","Амурская область","26355321","ГУП \"Агро\"","2801062041","281401001",null,null,"WARM"]
[20,"2666","Амурская область","27568165","ГУП Амурской области \"Зейский лесхоз\"","2815000768","280501001",null,null,"WARM"]
[21,"2666","Амурская область","26360970","Дистанция тепловых сетей Дальневосточной Дирекции по тепловодоснабжению структурного подразделения Центральной Дирекции по тепловодоснабжению - филиала ОАО \"Российские железные дороги\"","7708503727","280801001",null,null,"WARM"]
[22,"2666","Амурская область","26355363","ЗАО \"Амурплодсемпром\"","2812000840","280101001",null,null,"WARM"]
[23,"2666","Амурская область","26489730","ЗАО \"Холдинг\"","2809003633","280901001",null,null,"WARM"]
[24,"2666","Амурская область","26355389","ЗАО СПМК \"Ивановская\"","2816007124","281601001",null,null,"WARM"]
[25,"2666","Амурская область","26360971","Забайкальская дирекция по тепловодоснабжению - структурное подразделение Центральной дирекции по тепловодоснабжению филиала ОАО \"РЖД\"","7708503727","753645034",null,null,"WARM"]
[26,"2666","Амурская область","30345371","ИП Гобозов Р.И.","282800006185","отсутствует",null,null,"WARM"]
[27,"2666","Амурская область","30345365","ИП Канунников Ю.Л.","282100034780","отсутствует",null,null,"WARM"]
[28,"2666","Амурская область","28858833","ИП Павляк","281402340206","отсутствует",null,null,"WARM"]
[29,"2666","Амурская область","30412541","МБУ \"Приоритет\"","2816009523","281601001",null,null,"WARM"]
[30,"2666","Амурская область","28040166","МКП \"Восток\"","2820009621","282001001",null,null,"WARM"]
[31,"2666","Амурская область","31214998","МКП \"Мастер\"","2813009483","281301001","15-03-2013 00:00:00",null,"WARM"]
[32,"2666","Амурская область","31350104","МКП \"Теплоком\" с. Возжаевка","2804019446","280401001",null,null,"WARM"]
[33,"2666","Амурская область","26355449","МУЖЭП ЗАТО Циолковский","2823005248","282301001",null,null,"WARM"]
[34,"2666","Амурская область","29648943","МУП \"Городские энергетические сети\"","2804017311","280401001",null,null,"WARM"]
[35,"2666","Амурская область","26319056","МУП \"Горэлектротеплосеть\" г.Тында","2808002098","280801001",null,null,"WARM"]
[36,"2666","Амурская область","30345357","МУП \"Гродблагсервис\"","2812170899","281201001",null,null,"WARM"]
[37,"2666","Амурская область","26355413","МУП \"ЖКХ с. Толбузино\"","2818004312","281801001",null,null,"WARM"]
[38,"2666","Амурская область","28005129","МУП \"Жилкомэнерго\"","2812002044","281201001",null,null,"WARM"]
[39,"2666","Амурская область","26612527","МУП \"Огоджасервис\"","2825010099","282501001",null,null,"WARM"]
[40,"2666","Амурская область","26355437","МУП \"Поздеевское ЖКХ\"","2822003551","282201001",null,null,"WARM"]
[41,"2666","Амурская область","27568217","МУП \"Радуга\"","2817041093","281701001",null,null,"WARM"]
[42,"2666","Амурская область","26355409","МУП \"Рассвет\"","2817040572","281701001",null,null,"WARM"]
[43,"2666","Амурская область","28460641","МУП \"Ресурсоснабжающее предприятие \"Орлинное\"\"","2823063095","282301001",null,null,"WARM"]
[44,"2666","Амурская область","30347602","МУП \"Ресурспоставка\"","2823000610","282301001","07-08-2015 00:00:00",null,"WARM"]
[45,"2666","Амурская область","26355447","МУП \"Ромненские коммунальные сети\"","2822003720","282201001",null,null,"WARM"]
[46,"2666","Амурская область","27866888","МУП \"Тамбовские коммунальные системы\"","2827009109","282701001",null,null,"WARM"]
[47,"2666","Амурская область","27866851","МУП \"Тамбовские теплосети\"","2827009116","282701001",null,null,"WARM"]
[48,"2666","Амурская область","26502593","МУП \"Теплосервис\" Завитинского района","2814003815","281401001",null,null,"WARM"]
[49,"2666","Амурская область","28135092","МУП \"Теплоэнерго г. Белогорск\"","2804015434","280401001","09-06-2012 00:00:00",null,"WARM"]
[50,"2666","Амурская область","31298379","МУП \"Флагман\"","2813010538","281301001",null,null,"WARM"]
[51,"2666","Амурская область","26572689","МУП \"Электротеплосеть г. Белогорска\"","2804014416","280401001",null,null,"WARM"]
[52,"2666","Амурская область","26320329","МУП \"Энерго\"","2818004457","281801001","08-06-2009 00:00:00",null,"WARM"]
[53,"2666","Амурская область","28002573","МУП \"Энергоресурс\" рабочего поселка (п.г.т.) Уруша","2826006553","282601001",null,null,"WARM"]
[54,"2666","Амурская область","26835927","МУП «Коммунальные сети»","2826005359","282601001",null,null,"WARM"]
[55,"2666","Амурская область","28829489","МУП ЖКХ \"Вита\"","2816009700","281601001",null,null,"WARM"]
[56,"2666","Амурская область","30345121","МУП ЖКХ \"ТеплоПлюс\"","2816009763","281601001",null,null,"WARM"]
[57,"2666","Амурская область","26502540","МУП\" Орион\"","2824005018","282401001",null,null,"WARM"]
[58,"2666","Амурская область","27568370","Мазановское УМП \"Транспортное\"","2819014507","281901001",null,null,"WARM"]
[59,"2666","Амурская область","26502547","ОАО \"ДЭП №197\"","2816008657","281601001",null,null,"WARM"]
[60,"2666","Амурская область","26355426","ОАО \"Мазановскагропромстрой\"","2819002710","281901001",null,null,"WARM"]
[61,"2666","Амурская область","28816445","ОАО \"Ростелеком\"","7707049388","280143001",null,null,"WARM"]
[62,"2666","Амурская область","26355319","ОАО \"Судостроительный завод имени Октябрьской революции\"","2801018211","280101001",null,null,"WARM"]
[63,"2666","Амурская область","31348787","ООО \"АКК\"","2813010697","281301001",null,null,"WARM"]
[64,"2666","Амурская область","27712899","ООО \"Аварийная Диспетчерская Служба\"","2801142586","280101001",null,null,"WARM"]
[65,"2666","Амурская область","29647555","ООО \"Альтернатива\"","2808022055","280801001",null,null,"WARM"]
[66,"2666","Амурская область","31347286","ООО \"Амур Темп\"","2801245743","280101001",null,null,"WARM"]
[67,"2666","Амурская область","30857770","ООО \"Амур Энерго Строй\"","2804016741","280101001",null,null,"WARM"]
[68,"2666","Амурская область","30874209","ООО \"Амурская Топливная Компания\"","2806005093","280601001",null,null,"WARM"]
[69,"2666","Амурская область","27964112","ООО \"Амурская Угольная Компания\"","2806007005","280601001","29-07-2009 00:00:00",null,"WARM"]
[70,"2666","Амурская область","29648268","ООО \"Амурская тепловая компания\"","2801206656","280101001",null,null,"WARM"]
[71,"2666","Амурская область","31207706","ООО \"Амурская теплоснабжающая компания\"","2807006396","280701001",null,null,"WARM"]
[72,"2666","Амурская область","31401430","ООО \"Амурские коммунальные системы\"","2801254956","280101001",null,null,"WARM"]
[73,"2666","Амурская область","26355322","ООО \"Амурский бройлер\"","2801065123","280101001",null,null,"WARM"]
[74,"2666","Амурская область","31215879","ООО \"Амурстрой Энергия\"","2801241918","280101001",null,null,"WARM"]
[75,"2666","Амурская область","27568417","ООО \"Амуртеплосервис\"","2801142120","280101001",null,null,"WARM"]
[76,"2666","Амурская область","31412134","ООО \"Аполлон\"","2801175743","280101001",null,null,"WARM"]
[77,"2666","Амурская область","28427932","ООО \"Архаринская теплоснабжающая компания № 1\"","2810005353","281001001",null,null,"WARM"]
[78,"2666","Амурская область","28283807","ООО \"Архаринская теплоснабжающая компания № 3\"","2810005385","281001001",null,null,"WARM"]
[79,"2666","Амурская область","28427942","ООО \"Архаринская теплоснабжающая компания №2\"","2810005360","281001001",null,null,"WARM"]
[80,"2666","Амурская область","30958349","ООО \"Архаринская теплоснабжающая компания\"","2810005508","281001001",null,null,"WARM"]
[81,"2666","Амурская область","31295709","ООО \"Белогорская компания теплоснабжения\"","2801242848","280101001","25-07-2018 00:00:00",null,"WARM"]
[82,"2666","Амурская область","30394063","ООО \"Белогорская теплоснабжающая компания\"","2811056696","280101001",null,null,"WARM"]
[83,"2666","Амурская область","26771377","ООО \"Благовещенский завод строительных материалов\"","2801151781","280101001",null,null,"WARM"]
[84,"2666","Амурская область","26612416","ООО \"Большесазанское\"","2824004952","282401001",null,null,"WARM"]
[85,"2666","Амурская область","27269536","ООО \"Бурейская теплоснабжающая компания\"","2813008296","281301001",null,null,"WARM"]
[86,"2666","Амурская область","26371561","ООО \"Бытовик\"","2817004214","281701001",null,null,"WARM"]
[87,"2666","Амурская область","26531257","ООО \"Варваровский Коммунальщик -1\"","2821007433","282101001","09-07-2009 00:00:00",null,"WARM"]
[88,"2666","Амурская область","28423372","ООО \"Варваровский Коммунальщик-2\"","2821007497","282101001",null,null,"WARM"]
[89,"2666","Амурская область","30912162","ООО \"Василек\"","2801182317","280101001",null,null,"WARM"]
[90,"2666","Амурская область","27499297","ООО \"Вента\"","2816008777","281601001",null,null,"WARM"]
[91,"2666","Амурская область","31308727","ООО \"Вита\"","2816009957","281601001","10-07-2017 00:00:00",null,"WARM"]
[92,"2666","Амурская область","30856672","ООО \"Восток\" (Завитинск)","2813006820","281301001",null,null,"WARM"]
[93,"2666","Амурская область","28449947","ООО \"ВостокСервисКомплект\"","2801184480","280101001",null,null,"WARM"]
[94,"2666","Амурская область","27568547","ООО \"ВостокСтройКомплект\"","2801164928","280101001",null,null,"WARM"]
[95,"2666","Амурская область","31335420","ООО \"Восточный 1\"","2801250550","280101001",null,null,"WARM"]
[96,"2666","Амурская область","26502557","ООО \"Горный\"","2815014182","281501001",null,null,"WARM"]
[97,"2666","Амурская область","31033529","ООО \"Городские энергетические сети\"","2804015593","280401001","16-08-2012 00:00:00",null,"WARM"]
[98,"2666","Амурская область","30430310","ООО \"Градъ\"","2801112006","280101001",null,null,"WARM"]
[99,"2666","Амурская область","28150567","ООО \"Гудачи\"","2818006158","281801001",null,null,"WARM"]
[100,"2666","Амурская область","30953268","ООО \"ДИВА\"","2829001151","282901001",null,null,"WARM"]
[101,"2666","Амурская область","27566611","ООО \"ДСК-Приамурье-2\"","2818005490","281801001",null,null,"WARM"]
[102,"2666","Амурская область","30866882","ООО \"ДЭП №190\"","2807005515","280901001",null,null,"WARM"]
[103,"2666","Амурская область","28135080","ООО \"Дальжилстрой\"","2801112768","280101001","02-06-2006 00:00:00",null,"WARM"]
[104,"2666","Амурская область","28828864","ООО \"Дальневосточная компания\"","2810005427","281001001",null,null,"WARM"]
[105,"2666","Амурская область","27712892","ООО \"Дальтеплоком\"","2801134426","280101001",null,null,"WARM"]
[106,"2666","Амурская область","30388693","ООО \"Дмитриевское\"","2816009837","281601001",null,null,"WARM"]
[107,"2666","Амурская область","26616830","ООО \"Дорожно-Строительная Компания \"Приамурье\"","2818005250","281801001",null,null,"WARM"]
[108,"2666","Амурская область","30835066","ООО \"ЖДК-Энергоресурс\"","7717117968","280801001","16-12-2002 00:00:00",null,"WARM"]
[109,"2666","Амурская область","31275725","ООО \"ЖКХ Амур Сервис\"","2801229220","280101001","21-03-2017 00:00:00",null,"WARM"]
[110,"2666","Амурская область","28828873","ООО \"ЖКХ Вектор\"","2813009677","281301001",null,null,"WARM"]
[111,"2666","Амурская область","26355465","ООО \"ЖКХ Томское\"","2824004582","282401001",null,null,"WARM"]
[112,"2666","Амурская область","27568339","ООО \"ЖКХ-Ресурс\"","2801162751","280101001",null,null,"WARM"]
[113,"2666","Амурская область","26808790","ООО \"Жилкомсервис\"","2816008689","281601001",null,null,"WARM"]
[114,"2666","Амурская область","28451552","ООО \"Заря\"","2824005321","282401001",null,null,"WARM"]
[115,"2666","Амурская область","26355470","ООО \"Златоустовские коммунальные системы\"","2825009544","282501001",null,null,"WARM"]
[116,"2666","Амурская область","31225871","ООО \"Златоустовское коммунальное предприятие\" (ООО \"ЗКП\")","2825000252","282501001",null,null,"WARM"]
[117,"2666","Амурская область","31277059","ООО \"Интерлес\"","2813006940","281301001","10-12-2007 00:00:00",null,"WARM"]
[118,"2666","Амурская область","31254034","ООО \"КапиталЪ\"","2806007044","280601001","23-09-2009 00:00:00",null,"WARM"]
[119,"2666","Амурская область","28505886","ООО \"Капиталъ\"","2828012697","282801001",null,null,"WARM"]
[120,"2666","Амурская область","26355394","ООО \"Коммунальник-1\"","2816008463","281601001",null,null,"WARM"]
[121,"2666","Амурская область","30947680","ООО \"Коммунальные сети Свободненского района\"","2807005265","280701001",null,null,"WARM"]
[122,"2666","Амурская область","26612683","ООО \"Коммунальные системы БАМа\"","2808021326","280801001",null,null,"WARM"]
[123,"2666","Амурская область","27568705","ООО \"Коммунсервис-2\"","2821004150","282101001",null,null,"WARM"]
[124,"2666","Амурская область","31356539","ООО \"КомфорТ\"","2815016817","281501001",null,null,"WARM"]
[125,"2666","Амурская область","30345115","ООО \"Комфорт Плюс\"","2825000206","282501001",null,null,"WARM"]
[126,"2666","Амурская область","31244968","ООО \"Комфорт РСО\"","2825000260","282501001",null,null,"WARM"]
[127,"2666","Амурская область","30435078","ООО \"Комфорт\"","2816009844","281601001",null,null,"WARM"]
[128,"2666","Амурская область","28040104","ООО \"Комфорт\"","2825071542","282501001",null,null,"WARM"]
[129,"2666","Амурская область","26355486","ООО \"Косицинские теплосети\"","2827007373","282701001",null,null,"WARM"]
[130,"2666","Амурская область","26371608","ООО \"Лермонтовские теплосети\"","2827007366","282701001",null,null,"WARM"]
[131,"2666","Амурская область","26526108","ООО \"Лермонтовское\"","2824004938","282401001",null,null,"WARM"]
[132,"2666","Амурская область","31021208","ООО \"Магдагачинская теплоснабжающая компания\"","2818006623","280101001",null,null,"WARM"]
[133,"2666","Амурская область","31290857","ООО \"МаркТепло\"","2801239203","280101001","28-02-2018 00:00:00",null,"WARM"]
[134,"2666","Амурская область","26355328","ООО \"Марковское\"","2801109821","280101001",null,null,"WARM"]
[135,"2666","Амурская область","31022294","ООО \"Медальянс\"","2806008979","280601001",null,null,"WARM"]
[136,"2666","Амурская область","30917931","ООО \"Михайловское дорожное управление\"","2820010867","282001001",null,null,"WARM"]
[137,"2666","Амурская область","26355330","ООО \"Михайловское\"","2801109846","281201001",null,null,"WARM"]
[138,"2666","Амурская область","30985750","ООО \"Надежда\"","2813000138","250801001",null,null,"WARM"]
[139,"2666","Амурская область","26502561","ООО \"Овсянка\"","2815014224","281501001",null,null,"WARM"]
[140,"2666","Амурская область","30835105","ООО \"Октябрьские коммунальные системы\"","2815015997","281501001","11-05-2016 00:00:00",null,"WARM"]
[141,"2666","Амурская область","31007090","ООО \"Октябрьский Тепловик\"","2821005179","282101001",null,null,"WARM"]
[142,"2666","Амурская область","31420976","ООО \"ПОИСК ПАРТНЕР\"","2801247050","280101001",null,null,"WARM"]
[143,"2666","Амурская область","26641419","ООО \"Перспектива\"","2815014231","281501001",null,null,"WARM"]
[144,"2666","Амурская область","27659058","ООО \"Поярковская зерновая компания\"","2820009815","282001001",null,null,"WARM"]
[145,"2666","Амурская область","31182833","ООО \"Прогресс\"","2827009814","282701001",null,null,"WARM"]
[146,"2666","Амурская область","26502563","ООО \"Раздольненское\"","2827007969","282701001",null,null,"WARM"]
[147,"2666","Амурская область","28084254","ООО \"Районные тепловые сети\"","2823071995","282301001",null,null,"WARM"]
[148,"2666","Амурская область","26320303","ООО \"Районные электрические сети\"","2808018394","280801001",null,null,"WARM"]
[149,"2666","Амурская область","27568663","ООО \"Регион-2\"","2808111650","280801001",null,null,"WARM"]
[150,"2666","Амурская область","30373057","ООО \"Ресурс\"","2804017350","280401001",null,null,"WARM"]
[151,"2666","Амурская область","30849175","ООО \"Ресурс\" (Константиновский)","2817005000","281701001",null,null,"WARM"]
[152,"2666","Амурская область","28008960","ООО \"Ритм\"","2817004912","281701001",null,null,"WARM"]
[153,"2666","Амурская область","31318009","ООО \"Ромненский Тепловик\"","2827009966","282701001","10-06-2019 00:00:00",null,"WARM"]
[154,"2666","Амурская область","31063566","ООО \"СВАРОГ\"","2801233931","280101001",null,null,"WARM"]
[155,"2666","Амурская область","30371738","ООО \"СЕРВИС ДВ\"","2540190060","280101001",null,null,"WARM"]
[156,"2666","Амурская область","28135114","ООО \"СК \"Мост-Восток\"","5032189936","280401001","06-06-2008 00:00:00",null,"WARM"]
[157,"2666","Амурская область","30874144","ООО \"СМУ Райчихинское\"","2813009927","281301001",null,null,"WARM"]
[158,"2666","Амурская область","26355487","ООО \"Садовский теплосервис-1\"","2827007408","282701001",null,null,"WARM"]
[159,"2666","Амурская область","26502565","ООО \"Сервис\"","2827007239","282701001",null,null,"WARM"]
[160,"2666","Амурская область","26355329","ООО \"Сергеевское\"","2801109839","280101001",null,null,"WARM"]
[161,"2666","Амурская область","31305658","ООО \"Сергеевское\"","2801109839","281201001","21-02-2006 00:00:00",null,"WARM"]
[162,"2666","Амурская область","26355423","ООО \"Сивакский РМЗ\"","2818004792","281801001",null,null,"WARM"]
[163,"2666","Амурская область","30895270","ООО \"Сковородинская теплоснабжающая компания\"","2826000495","280101001",null,null,"WARM"]
[164,"2666","Амурская область","28136810","ООО \"Специальные строительные жилищно-коммунальные услуги\"","2818005348","281801001",null,null,"WARM"]
[165,"2666","Амурская область","31203279","ООО \"Спутник\"","2827009780","282701001",null,null,"WARM"]
[166,"2666","Амурская область","26355387","ООО \"Строитель-2\"","2816005825","281601001",null,null,"WARM"]
[167,"2666","Амурская область","31341268","ООО \"ТЕПЛО-СЕРВИС\"","2801248409","280101001","01-07-2019 00:00:00",null,"WARM"]
[168,"2666","Амурская область","30945849","ООО \"ТСК Амур-1\"","2814005153","281401001",null,null,"WARM"]
[169,"2666","Амурская область","30945883","ООО \"ТСК Амур-2\"","2814005139","281401001",null,null,"WARM"]
[170,"2666","Амурская область","31193974","ООО \"ТЭК-Зея\"","2815014986","281501001",null,null,"WARM"]
[171,"2666","Амурская область","30943317","ООО \"Темп\"","2801214706","280101001",null,null,"WARM"]
[172,"2666","Амурская область","28135147","ООО \"Тепло 10\"","2815005607","281501001","18-12-2003 00:00:00",null,"WARM"]
[173,"2666","Амурская область","28135158","ООО \"Тепло 16\"","2815013742","281501001","04-05-2006 00:00:00",null,"WARM"]
[174,"2666","Амурская область","28135169","ООО \"Тепло 20\"","2815013809","281501001","26-05-2006 00:00:00",null,"WARM"]
[175,"2666","Амурская область","28142788","ООО \"Тепло 8\"","2815005580","281501001",null,null,"WARM"]
[176,"2666","Амурская область","30396882","ООО \"Тепло\"","2812171162","281201001",null,null,"WARM"]
[177,"2666","Амурская область","30849160","ООО \"Тепло\" (Константиновский)","2817005017","281701001",null,null,"WARM"]
[178,"2666","Амурская область","31169610","ООО \"ТеплоКом\"","2804018795","280401001",null,null,"WARM"]
[179,"2666","Амурская область","30401560","ООО \"ТеплоСервис\"","2814005001","281401001","17-06-2014 00:00:00",null,"WARM"]
[180,"2666","Амурская область","30852123","ООО \"ТеплоСетьСервис\"","2801221887","280101001",null,null,"WARM"]
[181,"2666","Амурская область","27507354","ООО \"Тепловая Компания\"","2814004061","281401001",null,null,"WARM"]
[182,"2666","Амурская область","30852150","ООО \"Тепловая компания\"","2801221870","280101001",null,null,"WARM"]
[183,"2666","Амурская область","30396302","ООО \"Тепловик Ресурс\"","2822004001","282201001",null,null,"WARM"]
[184,"2666","Амурская область","27993840","ООО \"Тепловик\"","2814004720","281401001",null,null,"WARM"]
[185,"2666","Амурская область","26355404","ООО \"Тепловик\"","2817004165","281701001",null,null,"WARM"]
[186,"2666","Амурская область","27662125","ООО \"Тепловик\"","2824005240","282401001",null,null,"WARM"]
[187,"2666","Амурская область","31246712","ООО \"Тепловодоканал\"","2813010440","281301001","21-06-2018 00:00:00",null,"WARM"]
[188,"2666","Амурская область","28829531","ООО \"Тепловые сети \"Орлиный\"","2823083750","282301001",null,null,"WARM"]
[189,"2666","Амурская область","26355392","ООО \"Теплодом\"","2816007942","281601001",null,null,"WARM"]
[190,"2666","Амурская область","31025479","ООО \"Теплоинвест\"","2807006090","280701001",null,null,"WARM"]
[191,"2666","Амурская область","30892399","ООО \"Теплоком\"","2804017907","280401001",null,null,"WARM"]
[192,"2666","Амурская область","28814463","ООО \"Теплокомфорт\"","2813009613","281301001",null,null,"WARM"]
[193,"2666","Амурская область","30958128","ООО \"Теплосервис\"","2807005890","280701001",null,null,"WARM"]
[194,"2666","Амурская область","28814446","ООО \"Теплосервис\"","2813009645","281301001",null,null,"WARM"]
[195,"2666","Амурская область","27568425","ООО \"Теплосеть\"","2807034001","280701001",null,null,"WARM"]
[196,"2666","Амурская область","26355396","ООО \"Теплосеть\"","2816008110","281601001",null,null,"WARM"]
[197,"2666","Амурская область","26355403","ООО \"Теплосеть\"","2817004158","281701001",null,null,"WARM"]
[198,"2666","Амурская область","26612191","ООО \"Теплоснаб\"","2807015489","280701001",null,null,"WARM"]
[199,"2666","Амурская область","31378410","ООО \"Теплоснабжающая компания сковородинская\"","2801248085","280101001",null,null,"WARM"]
[200,"2666","Амурская область","31206830","ООО \"Теплоснабжающая компания\"","2813010369","281301001",null,null,"WARM"]
[201,"2666","Амурская область","26355495","ООО \"Теплоцентраль\"","2827008306","282701001",null,null,"WARM"]
[202,"2666","Амурская область","27769058","ООО \"Торгово-производственная компания \"Дальстройсервис\"","2801155810","281401001",null,null,"WARM"]
[203,"2666","Амурская область","31327512","ООО \"Транзит\"","2801250260","280101001","05-07-2019 00:00:00",null,"WARM"]
[204,"2666","Амурская область","31356534","ООО \"Тындинская теплосетевая компания\"","2801251680","280101001",null,null,"WARM"]
[205,"2666","Амурская область","26355505","ООО \"Ушаковское\"","2829002878","282901001",null,null,"WARM"]
[206,"2666","Амурская область","26505170","ООО \"Фроловское\"","2824004871","282401001",null,null,"WARM"]
[207,"2666","Амурская область","26616835","ООО \"Эгопласт\"","2818005267","281801001",null,null,"WARM"]
[208,"2666","Амурская область","26355372","ООО \"Энергетик\"","2813006348","281301001",null,null,"WARM"]
[209,"2666","Амурская область","31084918","ООО \"Энергия\"","2809000199","280901001",null,null,"WARM"]
[210,"2666","Амурская область","30943300","ООО \"Энергия\"","2822004058","282201001",null,null,"WARM"]
[211,"2666","Амурская область","28135136","ООО \"Энергосервис\"","2815014908","281501001","20-08-2012 00:00:00",null,"WARM"]
[212,"2666","Амурская область","28424145","ООО Амуркурорт","2806007453","280101001",null,null,"WARM"]
[213,"2666","Амурская область","26490674","ООО Дальвагоноремонт","7702673970","281345001",null,null,"WARM"]
[214,"2666","Амурская область","26502571","ООО ЖКХ \"Восток\"","2824004864","282401001",null,null,"WARM"]
[215,"2666","Амурская область","26502569","ООО ЖКХ \"Лиманное\"","2824004945","282401001",null,null,"WARM"]
[216,"2666","Амурская область","30917475","ООО МП \"Союз ЭдАл\"","2801223612","280101001",null,null,"WARM"]
[217,"2666","Амурская область","31350454","ООО РСО \"Приамурье\"","2815016694","281501001",null,null,"WARM"]
[218,"2666","Амурская область","26355422","ООО Тепло-водоканал\"","2818005387","281801001",null,null,"WARM"]
[219,"2666","Амурская область","26618193","ООО УК \"Лесхоз\"","2828012062","282801001",null,null,"WARM"]
[220,"2666","Амурская область","30401641","ООО санаторий Бузули","2823000391","282301001",null,null,"WARM"]
[221,"2666","Амурская область","26355381","ООО\"Береговские теплосистемы\"","2815014048","280501001",null,null,"WARM"]
[222,"2666","Амурская область","26355380","ООО\"Зейские тепловые сети\"","2815005780","281501001",null,null,"WARM"]
[223,"2666","Амурская область","30374073","Обособл.подразделение \"Амурское\" АО \"Глав.управление ЖКХ\"","5116000922","280445001",null,null,"WARM"]
[224,"2666","Амурская область","31159535","Общество с ограниченной отвественностью \"Система\"","2814004939","281401001",null,null,"WARM"]
[225,"2666","Амурская область","31021740","Общество с ограниченной ответственностью \"Магдагачинская компания теплоснабжения\"","2818006743","280101001",null,null,"WARM"]
[226,"2666","Амурская область","31317236","Общество с ограниченной ответственностью \"Регион\"","2801242894","280101001",null,null,"WARM"]
[227,"2666","Амурская область","26490683","Общество с ограниченной ответственностью \"Свет\"","2825009914","282501001",null,null,"WARM"]
[228,"2666","Амурская область","31229117","Общество с ограниченной ответственностью \"ХОРС-ресурс\"","2801244250","280101001",null,null,"WARM"]
[229,"2666","Амурская область","28422996","Общество с ограниченной ответственностью «ЖКХ-Ресурс-Райчихинский»","2806008591","280601001",null,null,"WARM"]
[230,"2666","Амурская область","26582950","Открытое акционерное общество \"Облкоммунсервис\"","2801154052","280101001",null,null,"WARM"]
[231,"2666","Амурская область","26641427","ПМС №185","7708503727","281801001",null,null,"WARM"]
[232,"2666","Амурская область","26355365","ПО \"Успех\"","2812007268","280101001",null,null,"WARM"]
[233,"2666","Амурская область","30840844","Потребительское общество \"АМУР\"","2801087208","280101001",null,null,"WARM"]
[234,"2666","Амурская область","31020010","СПК \"КОРФОВСКИЙ\"","2827001318","282701001",null,null,"WARM"]
[235,"2666","Амурская область","26616851","Талданский щебеночный завод - филиал ОАО \"Первая нерудная компания\"","7708670326","770801001",null,null,"WARM"]
[236,"2666","Амурская область","26355370","УММП \"Бурейский хлеб\"","2813005070","281301001",null,null,"WARM"]
[237,"2666","Амурская область","30911930","УМПОПиТ \"Вариант\"","2813004982","281301001",null,null,"WARM"]
[238,"2666","Амурская область","31084701","ФГБУ \"ЦЖКУ\" МО РФ (Филиал по ВВО ЖКС №7)","7729314745","280445002",null,null,"WARM"]
[239,"2666","Амурская область","30926365","ФГБУ «ЦЖКУ» МО РФ (Филиал ФГБУ «ЦЖКУ» МО РФ по ВВО)","7729314745","272443001","20-03-2017 00:00:00",null,"WARM"]
[240,"2666","Амурская область","26616844","ФГКУ \"Пограничное управление Федеральное службы безопасности Российской Федерации по Амурской области\"","2801106436","280101001",null,null,"WARM"]
[241,"2666","Амурская область","26355339","ФГКУ комбинат \"Амурский\" Росрезерва","2806001780","280601001",null,null,"WARM"]
[242,"2666","Амурская область","27896331","Филиал \"Нерюнгринское РНУ\" ООО \"Транснефть-Восток\"","3801079671","143402001",null,null,"WARM"]
[243,"2666","Амурская область","26490730","Филиал ПАО \"РусГидро\" - \"Бурейская ГЭС\"","2460066195","281302001",null,null,"WARM"]
[244,"2666","Амурская область","26489834","Филиал ПАО \"РусГидро\" - \"Зейская ГЭС\"","2460066195","280502001",null,null,"WARM"]
[245,"2666","Амурская область","30988294","Филиал РТРС \"Амурский ОРТПЦ\"","7717127211","280102001",null,null,"WARM"]
[246,"2666","Амурская область","28159257","Хабаровская дистанция гражданских сооружений-структ-го подразд-я ДВ дирекции по эксплуатации зданий и сооружений-структ-го подразд-я ДВ ЖД - филиала ОАО \"РЖД\"","7708503727","272445055","01-04-2013 00:00:00",null,"WARM"]

{"sheet":"modClassifierValidate","index":39,"n_rows":0,"n_cols":0,"rows_kept":0,"hidden":true}

{"sheet":"modHyp","index":40,"n_rows":0,"n_cols":0,"rows_kept":0,"hidden":true}

{"sheet":"modfrmDateChoose","index":41,"n_rows":0,"n_cols":0,"rows_kept":0,"hidden":true}

{"sheet":"modComm","index":42,"n_rows":0,"n_cols":0,"rows_kept":0,"hidden":true}

{"sheet":"modThisWorkbook","index":43,"n_rows":0,"n_cols":0,"rows_kept":0,"hidden":true}

{"sheet":"REESTR_MO","index":44,"n_rows":294,"n_cols":4,"rows_kept":294,"hidden":true}
["№","МР","МО","МО_ОКТМО"]
[1,"Архаринский муниципальный район","Антоновское","10605402"]
[2,"Архаринский муниципальный район","Аркадьевское","10605404"]
[3,"Архаринский муниципальный район","Архаринский муниципальный район","10605000"]
[4,"Архаринский муниципальный район","Вольненское","10605408"]
[5,"Архаринский муниципальный район","Грибовское","10605412"]
[6,"Архаринский муниципальный район","Иннокентьевское","10605424"]
[7,"Архаринский муниципальный район","Касаткинское","10605432"]
[8,"Архаринский муниципальный район","Кундурское","10605440"]
[9,"Архаринский муниципальный район","Ленинское","10605444"]
[10,"Архаринский муниципальный район","Межселенные территории Архаринского муниципального района, кроме территорий городского и сельских поселений","10605702"]
[11,"Архаринский муниципальный район","Новосергеевское","10605448"]
[12,"Архаринский муниципальный район","Новоспасское","10605452"]
[13,"Архаринский муниципальный район","Отважненское","10605456"]
[14,"Архаринский муниципальный район","Поселок Архара","10605151"]
[15,"Архаринский муниципальный район","Северное","10605460"]
[16,"Архаринский муниципальный район","Урильское","10605464"]
[17,"Архаринский муниципальный район","Черниговское","10605468"]
[18,"Архаринский муниципальный район","Ядринское","10605472"]
[19,"Белогорский муниципальный район","Белогорский муниципальный район","10608000"]
[20,"Белогорский муниципальный район","Белоцерковское","10608406"]
[21,"Белогорский муниципальный район","Васильевское","10608408"]
[22,"Белогорский муниципальный район","Великокнязевское","10608412"]
[23,"Белогорский муниципальный район","Возжаевское","10608414"]
[24,"Белогорский муниципальный район","Кустанаевское","10608420"]
[25,"Белогорский муниципальный район","Лохвицкое","10608424"]
[26,"Белогорский муниципальный район","Некрасовское","10608428"]
[27,"Белогорский муниципальный район","Никольское","10608432"]
[28,"Белогорский муниципальный район","Новинское","10608436"]
[29,"Белогорский муниципальный район","Озерянское","10608440"]
[30,"Белогорский муниципальный район","Пригородное","10608444"]
[31,"Белогорский муниципальный район","Светиловское","10608449"]
[32,"Белогорский муниципальный район","Томичевское","10608452"]
[33,"Благовещенский муниципальный район","Благовещенский муниципальный район","10611000"]
[34,"Благовещенский муниципальный район","Волковское","10611408"]
[35,"Благовещенский муниципальный район","Грибское","10611412"]
[36,"Благовещенский муниципальный район","Гродековское","10611413"]
[37,"Благовещенский муниципальный район","Марковское","10611416"]
[38,"Благовещенский муниципальный район","Михайловское","10611420"]
[39,"Благовещенский муниципальный район","Натальинское","10611424"]
[40,"Благовещенский муниципальный район","Новопетровское","10611428"]
[41,"Благовещенский муниципальный район","Новотроицкое","10611432"]
[42,"Благовещенский муниципальный район","Сергеевское","10611436"]
[43,"Благовещенский муниципальный район","Усть-Ивановское","10611438"]
[44,"Благовещенский муниципальный район","Чигиринское","10611440"]
[45,"Бурейский муниципальный район","Алексеевское","10615404"]
[46,"Бурейский муниципальный район","Бурейский муниципальный район","10615000"]
[47,"Бурейский муниципальный район","Виноградовское","10615412"]
[48,"Бурейский муниципальный район","Долдыканское","10615414"]
[49,"Бурейский муниципальный район","Малиновское","10615432"]
[50,"Бурейский муниципальный район","Поселок Бурея","10615157"]
[51,"Бурейский муниципальный район","Поселок Новобурейский","10615151"]
[52,"Бурейский муниципальный район","Поселок Талакан","10615172"]
[53,"Бурейский муниципальный район","Райчихинское","10615436"]
[54,"Бурейский муниципальный район","Родионовское","10615440"]
[55,"Бурейский муниципальный район","Старорайчихинское","10615441"]
[56,"Бурейский муниципальный район","Успеновское","10615444"]
[57,"Город Белогорск","Город Белогорск","10710000"]
[58,"Город Благовещенск","Город Благовещенск","10701000"]
[59,"Город Зея","Город Зея","10712000"]
[60,"Город Райчихинск","Город Райчихинск","10720000"]
[61,"Город Свободный","Город Свободный","10730000"]
[62,"Город Тында","Город Тында","10732000"]
[63,"Город Шимановск","Город Шимановск","10740000"]
[64,"ЗАТО Циолковский","ЗАТО Циолковский","10770000"]
[65,"Завитинский муниципальный район","Албазинское","10621404"]
[66,"Завитинский муниципальный район","Антоновское","10621408"]
[67,"Завитинский муниципальный район","Белояровское","10621412"]
[68,"Завитинский муниципальный район","Болдыревское","10621416"]
[69,"Завитинский муниципальный район","Верхнеильиновское","10621424"]
[70,"Завитинский муниципальный район","Город Завитинск","10621101"]
[71,"Завитинский муниципальный район","Завитинский муниципальный район","10621000"]
[72,"Завитинский муниципальный район","Иннокентьевское","10621428"]
[73,"Завитинский муниципальный район","Куприяновское","10621440"]
[74,"Завитинский муниципальный район","Преображеновское","10621420"]
[75,"Завитинский муниципальный район","Успеновское","10621444"]
[76,"Зейский муниципальный район","Алгачинское","10625408"]
[77,"Зейский муниципальный район","Амуро-Балтийское","10625404"]
[78,"Зейский муниципальный район","Береговое","10625420"]
[79,"Зейский муниципальный район","Бомнакское","10625412"]
[80,"Зейский муниципальный район","Верхнезейское","10625414"]
[81,"Зейский муниципальный район","Горненское","10625417"]
[82,"Зейский муниципальный район","Дугдинское","10625423"]
[83,"Зейский муниципальный район","Зейский муниципальный район","10625000"]
[84,"Зейский муниципальный район","Ивановское","10625428"]
[85,"Зейский муниципальный район","Межселенные территории Зейского муниципального района, кроме территорий сельских поселений","10625702"]
[86,"Зейский муниципальный район","Николаевское","10625432"]
[87,"Зейский муниципальный район","Овсянковское","10625440"]
[88,"Зейский муниципальный район","Огоронское","10625441"]
[89,"Зейский муниципальный район","Октябрьское","10625442"]
[90,"Зейский муниципальный район","Поляковское","10625443"]
[91,"Зейский муниципальный район","Снежногорское","10625456"]
[92,"Зейский муниципальный район","Сосновоборское","10625452"]
[93,"Зейский муниципальный район","Тунгалинское","10625457"]
[94,"Зейский муниципальный район","Умлеканское","10625460"]
[95,"Зейский муниципальный район","Хвойненское","10625444"]
[96,"Зейский муниципальный район","Чалбачинское","10625462"]
[97,"Зейский муниципальный район","Юбилейненское","10625464"]
[98,"Ивановский муниципальный район","Анновское","10628404"]
[99,"Ивановский муниципальный район","Березовское","10628407"]
[100,"Ивановский муниципальный район","Дмитриевское","10628410"]
[101,"Ивановский муниципальный район","Ерковецкое","10628412"]
[102,"Ивановский муниципальный район","Ивановский муниципальный район","10628000"]
[103,"Ивановский муниципальный район","Ивановское","10628416"]
[104,"Ивановский муниципальный район","Константиноградовское","10628417"]
[105,"Ивановский муниципальный район","Николаевское","10628420"]
[106,"Ивановский муниципальный район","Новоалексеевское","10628424"]
[107,"Ивановский муниципальный район","Новоивановское","10628425"]
[108,"Ивановский муниципальный район","Правовосточное","10628432"]
[109,"Ивановский муниципальный район","Приозерное","10628436"]
[110,"Ивановский муниципальный район","Среднебельское","10628440"]
[111,"Ивановский муниципальный район","Троицкое","10628441"]
[112,"Ивановский муниципальный район","Черемховское","10628448"]
[113,"Константиновский муниципальный район","Верхнеполтавское","10630404"]
[114,"Константиновский муниципальный район","Верхнеуртуйское","10630408"]
[115,"Константиновский муниципальный район","Зеньковское","10630412"]
[116,"Константиновский муниципальный район","Ключевское","10630416"]
[117,"Константиновский муниципальный район","Коврижское","10630420"]
[118,"Константиновский муниципальный район","Константиновский муниципальный район","10630000"]
[119,"Константиновский муниципальный район","Константиновское","10630424"]
[120,"Константиновский муниципальный район","Крестовоздвиженское","10630428"]
[121,"Константиновский муниципальный район","Нижнеполтавское","10630432"]
[122,"Константиновский муниципальный район","Новопетровское","10630436"]
[123,"Константиновский муниципальный район","Новотроицкое","10630440"]
[124,"Константиновский муниципальный район","Семидомское","10630450"]
[125,"Магдагачинский муниципальный район","Гонжинское","10631404"]
[126,"Магдагачинский муниципальный район","Гудачинское","10631406"]
[127,"Магдагачинский муниципальный район","Дактуйское","10631408"]
[128,"Магдагачинский муниципальный район","Кузнецовское","10631412"]
[129,"Магдагачинский муниципальный район","Магдагачинский муниципальный район","10631000"]
[130,"Магдагачинский муниципальный район","Межселенные территории Магдагачинского муниципального района, кроме территорий городских и сельских поселений","10631702"]
[131,"Магдагачинский муниципальный район","Поселок Магдагачи","10631151"]
[132,"Магдагачинский муниципальный район","Поселок Сиваки","10631160"]
[133,"Магдагачинский муниципальный район","Поселок Ушумун","10631170"]
[134,"Магдагачинский муниципальный район","Толбузинское","10631420"]
[135,"Магдагачинский муниципальный район","Тыгдинское","10631422"]
[136,"Магдагачинский муниципальный район","Чалганское","10631424"]
[137,"Магдагачинский муниципальный район","Черняевское","10631428"]
[138,"Мазановский муниципальный район","Белояровское","10632404"]
[139,"Мазановский муниципальный район","Богословское","10632408"]
[140,"Мазановский муниципальный район","Дмитриевское","10632416"]
[141,"Мазановский муниципальный район","Краснояровское","10632420"]
[142,"Мазановский муниципальный район","Мазановский муниципальный район","10632000"]
[143,"Мазановский муниципальный район","Мазановское","10632424"]
[144,"Мазановский муниципальный район","Майское","10632425"]
[145,"Мазановский муниципальный район","Межселенные территории Мазановского муниципального района, кроме территорий сельских поселений","10632702"]
[146,"Мазановский муниципальный район","Молчановское","10632432"]
[147,"Мазановский муниципальный район","Новокиевское","10632436"]
[148,"Мазановский муниципальный район","Новороссийское","10632440"]
[149,"Мазановский муниципальный район","Практичанское","10632448"]
[150,"Мазановский муниципальный район","Путятинское","10632452"]
[151,"Мазановский муниципальный район","Сапроновское","10632460"]
[152,"Мазановский муниципальный район","Угловское","10632464"]
[153,"Михайловский муниципальный район","Воскресеновское","10635408"]
[154,"Михайловский муниципальный район","Димское","10635412"]
[155,"Михайловский муниципальный район","Дубовское","10635416"]
[156,"Михайловский муниципальный район","Зеленоборское","10635420"]
[157,"Михайловский муниципальный район","Ильиновское","10635424"]
[158,"Михайловский муниципальный район","Калининское","10635428"]
[159,"Михайловский муниципальный район","Коршуновское","10635432"]
[160,"Михайловский муниципальный район","Михайловский муниципальный район","10635000"]
[161,"Михайловский муниципальный район","Михайловское","10635436"]
[162,"Михайловский муниципальный район","Новочесноковское","10635440"]
[163,"Михайловский муниципальный район","Поярковское","10635442"]
[164,"Михайловский муниципальный район","Чесноковское","10635444"]
[165,"Октябрьский муниципальный район","Борисоглебское","10638402"]
[166,"Октябрьский муниципальный район","Варваровское","10638405"]
[167,"Октябрьский муниципальный район","Восточное","10638408"]
[168,"Октябрьский муниципальный район","Екатеринославское","10638403"]
[169,"Октябрьский муниципальный район","Королинское","10638424"]
[170,"Октябрьский муниципальный район","Максимовское","10638412"]
[171,"Октябрьский муниципальный район","Мухинское","10638416"]
[172,"Октябрьский муниципальный район","Николо-Александровское","10638420"]
[173,"Октябрьский муниципальный район","Новомихайловское","10638428"]
[174,"Октябрьский муниципальный район","Октябрьский муниципальный район","10638000"]
[175,"Октябрьский муниципальный район","Панинское","10638429"]
[176,"Октябрьский муниципальный район","Переясловское","10638433"]
[177,"Октябрьский муниципальный район","Песчаноозерское","10638432"]
[178,"Октябрьский муниципальный район","Романовское","10638436"]
[179,"Октябрьский муниципальный район","Трудовое","10638404"]
[180,"Прогресс","Прогресс","10775000"]
[181,"Ромненский муниципальный район","Амаранское","10640404"]
[182,"Ромненский муниципальный район","Дальневосточное","10640412"]
[183,"Ромненский муниципальный район","Знаменское","10640416"]
[184,"Ромненский муниципальный район","Каховское","10640424"]
[185,"Ромненский муниципальный район","Поздеевское","10640428"]
[186,"Ромненский муниципальный район","Рогозовское","10640436"]
[187,"Ромненский муниципальный район","Ромненский муниципальный район","10640000"]
[188,"Ромненский муниципальный район","Ромненское","10640440"]
[189,"Ромненский муниципальный район","Святоруссовское","10640444"]
[190,"Ромненский муниципальный район","Чергалинское","10640449"]
[191,"Свободненский муниципальный район","Дмитриевское","10642412"]
[192,"Свободненский муниципальный район","Желтояровское","10642416"]
[193,"Свободненский муниципальный район","Загорно-Селитьбинское","10642420"]
[194,"Свободненский муниципальный район","Климоуцевское","10642424"]
[195,"Свободненский муниципальный район","Костюковское","10642428"]
[196,"Свободненский муниципальный район","Курганское","10642430"]
[197,"Свободненский муниципальный район","Малосазанское","10642434"]
[198,"Свободненский муниципальный район","Москвитинское","10642440"]
[199,"Свободненский муниципальный район","Нижнебузулинское","10642444"]
[200,"Свободненский муниципальный район","Новгородское","10642432"]
[201,"Свободненский муниципальный район","Новоивановское","10642448"]
[202,"Свободненский муниципальный район","Петропавловское","10642460"]
[203,"Свободненский муниципальный район","Свободненский муниципальный район","10642000"]
[204,"Свободненский муниципальный район","Семеновское","10642468"]
[205,"Свободненский муниципальный район","Сычевское","10642476"]
[206,"Свободненский муниципальный район","Черновское","10642488"]
[207,"Селемджинский муниципальный район","Златоустовский сельсовет","10645402"]
[208,"Селемджинский муниципальный район","Ивановское","10645404"]
[209,"Селемджинский муниципальный район","Исинское","10645405"]
[210,"Селемджинский муниципальный район","Коболдинский сельсовет","10645410"]
[211,"Селемджинский муниципальный район","Межселенные территории Селемджинского муниципального района, кроме территорий городских и сельских поселений","10645702"]
[212,"Селемджинский муниципальный район","Норское","10645408"]
[213,"Селемджинский муниципальный район","Огоджинский сельсовет","10645418"]
[214,"Селемджинский муниципальный район","Поселок Токур","10645185"]
[215,"Селемджинский муниципальный район","Поселок Февральск","10645189"]
[216,"Селемджинский муниципальный район","Поселок Экимчан","10645151"]
[217,"Селемджинский муниципальный район","Селемджинский муниципальный район","10645000"]
[218,"Селемджинский муниципальный район","Стойбинский сельсовет","10645403"]
[219,"Серышевский муниципальный район","Аргинское","10647404"]
[220,"Серышевский муниципальный район","Большесазанское","10647412"]
[221,"Серышевский муниципальный район","Водораздельненское","10647420"]
[222,"Серышевский муниципальный район","Казанское","10647424"]
[223,"Серышевский муниципальный район","Лебяжьевское","10647428"]
[224,"Серышевский муниципальный район","Лермонтовское","10647408"]
[225,"Серышевский муниципальный район","Новосергеевское","10647436"]
[226,"Серышевский муниципальный район","Озерненское","10647440"]
[227,"Серышевский муниципальный район","Полянское","10647444"]
[228,"Серышевский муниципальный район","Поселок Серышево","10647151"]
[229,"Серышевский муниципальный район","Серышевский муниципальный район","10647000"]
[230,"Серышевский муниципальный район","Сосновское","10647416"]
[231,"Серышевский муниципальный район","Томское","10647448"]
[232,"Серышевский муниципальный район","Украинское","10647452"]
[233,"Серышевский муниципальный район","Фроловское","10647456"]
[234,"Серышевский муниципальный район","Широкологское","10647460"]
[235,"Сковородинский муниципальный район","Албазинское","10649404"]
[236,"Сковородинский муниципальный район","Город Сковородино","10649101"]
[237,"Сковородинский муниципальный район","Джалиндинское","10649408"]
[238,"Сковородинский муниципальный район","Межселенные территории Сковородинского муниципального района, кроме территорий городских и сельских поселений","10649702"]
[239,"Сковородинский муниципальный район","Неверское","10649414"]
[240,"Сковородинский муниципальный район","Поселок Ерофей Павлович","10649155"]
[241,"Сковородинский муниципальный район","Поселок Уруша","10649185"]
[242,"Сковородинский муниципальный район","Сковородинский муниципальный район","10649000"]
[243,"Сковородинский муниципальный район","Солнечное","10649415"]
[244,"Сковородинский муниципальный район","Талданское","10649418"]
[245,"Сковородинский муниципальный район","Тахтамыгдинское","10649420"]
[246,"Тамбовский муниципальный район","Жариковское","10651408"]
[247,"Тамбовский муниципальный район","Козьмодемьяновское","10651412"]
[248,"Тамбовский муниципальный район","Куропатинское","10651420"]
[249,"Тамбовский муниципальный район","Лермонтовское","10651421"]
[250,"Тамбовский муниципальный район","Муравьевское","10651432"]
[251,"Тамбовский муниципальный район","Николаевское","10651436"]
[252,"Тамбовский муниципальный район","Новоалександровское","10651440"]
[253,"Тамбовский муниципальный район","Раздольненское","10651448"]
[254,"Тамбовский муниципальный район","Садовское","10651452"]
[255,"Тамбовский муниципальный район","Тамбовский муниципальный район","10651000"]
[256,"Тамбовский муниципальный район","Тамбовское","10651456"]
[257,"Тамбовский муниципальный район","Толстовское","10651460"]
[258,"Тындинский муниципальный район","Аносовское","10654402"]
[259,"Тындинский муниципальный район","Беленький сельсовет","10654444"]
[260,"Тындинский муниципальный район","Восточное","10654405"]
[261,"Тындинский муниципальный район","Дипкунское","10654414"]
[262,"Тындинский муниципальный район","Кувыктинское","10654407"]
[263,"Тындинский муниципальный район","Ларбинское","10654410"]
[264,"Тындинский муниципальный район","Лопчинское","10654412"]
[265,"Тындинский муниципальный район","Маревское","10654415"]
[266,"Тындинский муниципальный район","Межселенные территории Тындинского муниципального района, кроме территорий сельских поселений","10654702"]
[267,"Тындинский муниципальный район","Моготское","10654411"]
[268,"Тындинский муниципальный район","Муртыгитское","10654403"]
[269,"Тындинский муниципальный район","Нюкжинское","10654408"]
[270,"Тындинский муниципальный район","Олекминское","10654409"]
[271,"Тындинский муниципальный район","Первомайское","10654413"]
[272,"Тындинский муниципальный район","Соловьевское","10654441"]
[273,"Тындинский муниципальный район","Тутаульское","10654416"]
[274,"Тындинский муниципальный район","Тындинский муниципальный район","10654000"]
[275,"Тындинский муниципальный район","Урканское","10654417"]
[276,"Тындинский муниципальный район","Усть-Нюкжинское","10654425"]
[277,"Тындинский муниципальный район","Хорогочинское","10654428"]
[278,"Тындинский муниципальный район","Чильчинское","10654430"]
[279,"Тындинский муниципальный район","Юкталинское","10654439"]
[280,"Шимановский муниципальный район","Береинское","10655412"]
[281,"Шимановский муниципальный район","Малиновское","10655472"]
[282,"Шимановский муниципальный район","Межселенные территории Шимановского муниципального района, кроме территорий сельских поселений","10655702"]
[283,"Шимановский муниципальный район","Мухинское","10655424"]
[284,"Шимановский муниципальный район","Нововоскресеновское","10655428"]
[285,"Шимановский муниципальный район","Новогеоргиевское","10655432"]
[286,"Шимановский муниципальный район","Петрушинское","10655436"]
[287,"Шимановский муниципальный район","Саскалинское","10655444"]
[288,"Шимановский муниципальный район","Селетканское","10655456"]
[289,"Шимановский муниципальный район","Симоновское","10655460"]
[290,"Шимановский муниципальный район","Ураловское","10655462"]
[291,"Шимановский муниципальный район","Ушаковское","10655468"]
[292,"Шимановский муниципальный район","Чагоянское","10655480"]
[293,"Шимановский муниципальный район","Шимановский муниципальный район","10655000"]

{"sheet":"REESTR_MO_FILTER","index":45,"n_rows":0,"n_cols":0,"rows_kept":0,"hidden":true}

{"sheet":"modfrmReestrMR","index":46,"n_rows":0,"n_cols":0,"rows_kept":0,"hidden":true}

{"sheet":"modServiceModule","index":47,"n_rows":0,"n_cols":0,"rows_kept":0,"hidden":true}

{"sheet":"modfrmCheckUpdates","index":48,"n_rows":0,"n_cols":0,"rows_kept":0,"hidden":true}

{"sheet":"REESTR_DS","index":49,"n_rows":4,"n_cols":2,"rows_kept":4,"hidden":true}
[]
[]
[null,"Город Благовещенск, Город Благовещенск (10701000);"]
[null,"Прогресс, Прогресс (10775000);"]

{"sheet":"REESTR_CHS","index":50,"n_rows":0,"n_cols":0,"rows_kept":0,"hidden":true}

{"sheet":"REESTR_LINK","index":51,"n_rows":3,"n_cols":3,"rows_kept":3,"hidden":true}
["ID","LINK_NAME","REGION"]
[4189678,"https://portal.eias.ru/Portal/DownloadPage.aspx?type=12&guid=????????-????-????-????-????????????","ALL"]
[4190415,"https://eias.fstrf.ru/disclo/get_file?p_guid=????????-????-????-????-????????????","ALL"]